Name,Sub Group,Service Areas,Expense Type,Narrative,Date,Transaction Number,Amount,Supplier Name,Supplier Ref,Period,Year
Allerdale Borough Council,12501,Premises,Industrial Units,NNDR and Other Occupancy Charges,04/05/2016,162390,"1,441.30",ALLERDALE,A00342,2,2016
Allerdale Borough Council,12501,Premises,Industrial Units,NNDR and Other Occupancy Charges,04/05/2016,162391,"11,679.50",ALLERDALE,A00342,2,2016
Allerdale Borough Council,12501,Premises,Tenanted Properties,NNDR and Other Occupancy Charges,04/05/2016,162392,"3,180.80",ALLERDALE,A00342,2,2016
Allerdale Borough Council,12501,Premises,Tenanted Properties,NNDR and Other Occupancy Charges,04/05/2016,162393,"6,088.25",ALLERDALE,A00342,2,2016
Allerdale Borough Council,12501,Premises,Tenanted Properties,NNDR and Other Occupancy Charges,04/05/2016,162394,"1,732.57",ALLERDALE,A00342,2,2016
Allerdale Borough Council,12501,Premises,Industrial Units,NNDR and Other Occupancy Charges,04/05/2016,162395,"2,882.60",ALLERDALE,A00342,2,2016
Allerdale Borough Council,12402,Premises,Corporate Property Maintenance,Electricity,04/05/2016,162396,"1,012.47",N POWER,X00015,2,2016
Allerdale Borough Council,12501,Premises,Corporate Property Maintenance,NNDR and Other Occupancy Charges,04/05/2016,162397,"1,936.00",ALLERDALE,A00342,2,2016
Allerdale Borough Council,12501,Premises,Corporate Property Maintenance,NNDR and Other Occupancy Charges,04/05/2016,162398,"1,452.00",ALLERDALE,A00342,2,2016
Allerdale Borough Council,12408,Premises,Public Convenience Cleaning,Water & Sewage,04/05/2016,162399,23.88,UNITED UTILITIES ,X00011,2,2016
Allerdale Borough Council,15704,Supplies & Services,IT Services,Mobile Phones,04/05/2016,162400,"1,151.33",VODAFONE,A00551,2,2016
Allerdale Borough Council,10401,Employee Costs,Elections,Agency Staff Costs,04/05/2016,162401,"10,080.70",ASSOCIATION OF ELECTORAL ADMIN,A00189,2,2016
Allerdale Borough Council,10401,Employee Costs,Parking Services Pay Group,Agency Staff Costs,25/05/2016,162402,700.00,PRACTICUS LTD,A02237,2,2016
Allerdale Borough Council,15811,Supplies & Services,Parking Services Pay Group,Software Maintenance,18/05/2016,162403,101.09,RELIANCE HIGH-TECH LTD,C00123,2,2016
Allerdale Borough Council,15101,Supplies & Services,Pest Control,Equipment Costs,04/05/2016,162404,113.27,ARCO LIMITED - HEAD OFFICE HULL,A00045,2,2016
Allerdale Borough Council,10601,Employee Costs,Markets,External Courses & Seminar Fees,18/05/2016,162405,325.00,NABMA CONSULTANCY SERVICES,A00906,2,2016
Allerdale Borough Council,15506,Supplies & Services,Estates,Professional Services,04/05/2016,162406,92.17,WALTON GOODLAND LTD,A01226,2,2016
Allerdale Borough Council,15103,Supplies & Services,KMAG Enhancement Activity,Purchase of Materials,04/05/2016,162407,56.89,YORKSHIRE PURCHASING ORGANISATION,A00747,2,2016
Allerdale Borough Council,15811,Supplies & Services,Shared Revs & Bens IT Costs,Software Maintenance,11/05/2016,162408,"5,302.79",CAPITA BUSINESS SERVICES LTD,A01027,2,2016
Allerdale Borough Council,15405,Supplies & Services,Npower Energy Efficiency Programme,Use of External Printers,11/05/2016,162409,30.00,FIRPRESS PRINTERS,A00063,2,2016
Allerdale Borough Council,26000,Earmarked Reserves,Shared Revs & Bens Projects,Budget-Expd funded from Reserve,04/05/2016,162410,25.00,MORGAN HUNT PUBLIC SECTOR,A00725,2,2016
Allerdale Borough Council,15505,Supplies & Services,Licensing Service,Licences,18/05/2016,162411,"2,885.20",NEWAUTO LTD T/A MOGO UK,A00303,2,2016
Allerdale Borough Council,15803,Supplies & Services,IT Costs (Allerdale Only),Hardware Purchase,04/05/2016,162412,100.30,MISCO,A00125,2,2016
Allerdale Borough Council,15403,Supplies & Services,Communications and Marketing,Publications and Periodicals,04/05/2016,162413,88.20,P & D NEWSAGENTS,A00237,2,2016
Allerdale Borough Council,15102,Supplies & Services,Parking Services Pay Group,Equipment Repair & Maintenance,18/05/2016,162414,296.91,METRIC GROUP LTD,A00568,2,2016
Allerdale Borough Council,16102,Supplies & Services,Economic Regeneration,Regeneration Initiatives,04/05/2016,162415,425.00,Redacted information - included personal information ,A01268,2,2016
Allerdale Borough Council,15550,Supplies & Services,Financial Planning & Economic Growth,General-Service Related Fees,18/05/2016,162416,"1,703.90",MOTT MACDONALD LTD,C00161,2,2016
Allerdale Borough Council,31104,Income,BEC Social Investment Fund,Contribution from Other Organisations,04/05/2016,162417,"21,337.50",CUMBRIA YOUTH ALLIANCE,M00704,2,2016
Allerdale Borough Council,15101,Supplies & Services,Homelessness,Equipment Costs,04/05/2016,162418,77.02,ALLERDALE BOROUGH COUNCIL,X00034,2,2016
Allerdale Borough Council,34150,Income,Planning and Development,General Recovery of Other Costs-Income,04/05/2016,162419,33.00,BELL PARK KERRIDGE,A01759,2,2016
Allerdale Borough Council,15506,Supplies & Services,Food and Occupational Health,Professional Services,04/05/2016,162420,235.00,MPM NORTH WEST LIMITED,A00113,2,2016
Allerdale Borough Council,15604,Supplies & Services,Document Management Pay Group,Franking Machine refills,04/05/2016,162421,"10,000.00",FP TELESET,A00428,2,2016
Allerdale Borough Council,14101,Transport,Homelessness,Vehicle Leasing,04/05/2016,162422,171.74,DOBIES VAUXHALL,A00254,2,2016
Allerdale Borough Council,12350,Premises,Insurances,General-Facilities Management,04/05/2016,162423,224.00,SE CEILING LIMITED,C00170,2,2016
Allerdale Borough Council,12408,Premises,Homelessness,Water & Sewage,04/05/2016,162424,245.93,UNITED UTILITIES,X00011,2,2016
Allerdale Borough Council,12408,Premises,Homelessness,Water & Sewage,04/05/2016,162425,245.93,UNITED UTILITIES,X00011,2,2016
Allerdale Borough Council,12408,Premises,Homelessness,Water & Sewage,04/05/2016,162426,245.93,UNITED UTILITIES,X00011,2,2016
Allerdale Borough Council,12408,Premises,Homelessness,Water & Sewage,04/05/2016,162427,245.93,UNITED UTILITIES,X00011,2,2016
Allerdale Borough Council,26000,Earmarked Reserves,Mary Portas - Maryport,Budget-Expd funded from Reserve,11/05/2016,162428,300.00,CUMBRIA IN BLOOM,A01573,2,2016
Allerdale Borough Council,15502,Supplies & Services,Legal Services,Land Registry Fees,23/05/2016,162429,68.00,HM LAND REGISTRY,A00505,2,2016
Allerdale Borough Council,15502,Supplies & Services,Legal Services,Land Registry Fees,04/05/2016,162430,21.00,HM LAND REGISTRY ,A00505,2,2016
Allerdale Borough Council,15501,Supplies & Services,Solway Wetlands Project,Consultants Fees,11/05/2016,162431,300.00,Redacted information - included personal information ,A01375,2,2016
Allerdale Borough Council,15103,Supplies & Services,Solway Wetlands Project,Purchase of Materials,11/05/2016,162432,120.00,MESSRS DIXON,A02317,2,2016
Allerdale Borough Council,15501,Supplies & Services,Solway Wetlands Project,Consultants Fees,11/05/2016,162433,800.00,CREATIVE HORIZONS CUMBRIA,A02277,2,2016
Allerdale Borough Council,15401,Supplies & Services,Planning and Development,General Stationery,11/05/2016,162434,53.19,HEATONS OFFICE SOLUTION (PREV LAKELAND/INTEGRITY),A00069,2,2016
Allerdale Borough Council,15401,Supplies & Services,Building Control - Chargeable,General Stationery,11/05/2016,162435,15.18,HEATONS OFFICE SOLUTION (PREV LAKELAND/INTEGRITY),A00069,2,2016
Allerdale Borough Council,15501,Supplies & Services,Homelessness,Consultants Fees,11/05/2016,162436,40.00,OXFORD STREET SURGERY,A00418,2,2016
Allerdale Borough Council,15501,Supplies & Services,Homelessness,Consultants Fees,11/05/2016,162437,25.98,JAMES STREET GROUP PRACTICE,A00462,2,2016
Allerdale Borough Council,15512,Supplies & Services,Animal Welfare,Kennelling,11/05/2016,162438,"7,923.00",WHINMILL FARM CANINE CENTRE,A00117,2,2016
Allerdale Borough Council,14105,Transport,Animal Welfare,"Fuel, Lubricants & Consumables",11/05/2016,162439,99.80,HI-Q TYRESERVICES,A00313,2,2016
Allerdale Borough Council,15506,Supplies & Services,Housing Needs Survey,Professional Services,01/06/2016,162440,"3,594.61",ARC4 LIMITED,A02266,2,2016
Allerdale Borough Council,16150,Supplies & Services,"The Hub, Workington Town Centre",General Promotions,11/05/2016,162441,300.00,Redacted information - included personal information ,A01408,2,2016
Allerdale Borough Council,10401,Employee Costs,Shared IT Services Pay Group,Agency Staff Costs,11/05/2016,162442,387.95,ADECCO RECRUITMENT,A00188,2,2016
Allerdale Borough Council,10401,Employee Costs,Shared IT Services Pay Group,Agency Staff Costs,11/05/2016,162443,503.28,ADECCO RECRUITMENT,A00188,2,2016
Allerdale Borough Council,15808,Supplies & Services,IT Services,Computer Consumables,25/05/2016,162444,193.95,SETON,A01435,2,2016
Allerdale Borough Council,15803,Supplies & Services,IT Services,Hardware Purchase,25/05/2016,162445,114.63,INSIGHT DIRECT (UK) LTD,A00054,2,2016
Allerdale Borough Council,15405,Supplies & Services,Parking Services Pay Group,Use of External Printers,18/05/2016,162446,545.00,FIRPRESS PRINTERS,A00063,2,2016
Allerdale Borough Council,15811,Supplies & Services,IT Services,Software Maintenance,01/06/2016,162447,"4,309.00",CONTRACT DATA RESEARCH LTD,A00393,2,2016
Allerdale Borough Council,52106,Capital Expenditure,New Leisure Facility,Consultants Fees (Capital),01/06/2016,162448,"1,500.00",GT ARCHITECTS,A01777,2,2016
Allerdale Borough Council,12403,Premises,Homelessness,Gas,18/05/2016,162449,56.00,MEPOS LIMITED,A01286,2,2016
Allerdale Borough Council,10110,Employee Costs,Busy Bees Childcare Scheme,Salary Sacrifice,18/05/2016,162450,"1,731.50",COMPUTERSHARE VOUCHER SERVICES,A00991,2,2016
Allerdale Borough Council,10401,Employee Costs,Parking Services Pay Group,Agency Staff Costs,01/06/2016,162451,700.00,PRACTICUS LTD,A02237,2,2016
Allerdale Borough Council,26000,Earmarked Reserves,Shared Revs & Bens Projects,Budget-Expd funded from Reserve,11/05/2016,162452,962.00,MORGAN HUNT PUBLIC SECTOR,A00725,2,2016
Allerdale Borough Council,15811,Supplies & Services,IT Services,Software Maintenance,11/05/2016,162453,"8,712.00",IDOX SOFTWARE LTD,A00291,2,2016
Allerdale Borough Council,15811,Supplies & Services,Finance and Accounting Pay Group,Software Maintenance,01/06/2016,162454,"2,037.64",APTEAN LIMITED,A02038,2,2016
Allerdale Borough Council,10110,Employee Costs,Busy Bees Childcare Scheme,Salary Sacrifice,18/05/2016,162455,95.23,COMPUTERSHARE VOUCHER SERVICES,A00991,2,2016
Allerdale Borough Council,20101,Third Party Payments,Recycling,Cleansing Contract,11/05/2016,162456,"2,517.48",CUMBRIA WASTE MANAGEMENT LTD,A01304,2,2016
Allerdale Borough Council,20101,Third Party Payments,Recycling,Cleansing Contract,11/05/2016,162457,"2,409.96",CUMBRIA WASTE MANAGEMENT LTD,A01304,2,2016
Allerdale Borough Council,20101,Third Party Payments,Recycling,Cleansing Contract,11/05/2016,162458,221.76,CUMBRIA WASTE MANAGEMENT LTD,A01304,2,2016
Allerdale Borough Council,20101,Third Party Payments,Recycling,Cleansing Contract,11/05/2016,162459,70.14,CUMBRIA WASTE MANAGEMENT LTD,A01304,2,2016
Allerdale Borough Council,20101,Third Party Payments,Recycling,Cleansing Contract,11/05/2016,162460,"1,748.88",CUMBRIA WASTE MANAGEMENT LTD,A01304,2,2016
Allerdale Borough Council,20101,Third Party Payments,Recycling,Cleansing Contract,11/05/2016,162461,"2,622.90",CUMBRIA WASTE MANAGEMENT LTD,A01304,2,2016
Allerdale Borough Council,20101,Third Party Payments,Recycling,Cleansing Contract,11/05/2016,162462,"2,724.96",CUMBRIA WASTE MANAGEMENT LTD,A01304,2,2016
Allerdale Borough Council,16150,Supplies & Services,Town Centre Management,General Promotions,11/05/2016,162464,140.00,HER CITI,A00441,2,2016
Allerdale Borough Council,15812,Supplies & Services,IT Services,Software Development,24/08/2016,162465,462.28,BARCLAYCARD COMMERCIAL,X00207,2,2016
Allerdale Borough Council,16150,Supplies & Services,LEP Flood Recovery Events Funding,General Promotions,11/05/2016,162466,"5,000.00",TT OF MARYPORT COM.CARNIVAL,M00887,2,2016
Allerdale Borough Council,14105,Transport,Parking Services Pay Group,"Fuel, Lubricants & Consumables",29/07/2016,162467,410.58,BP OIL UK LTD ,X00022,2,2016
Allerdale Borough Council,14102,Transport,Parking Services Pay Group,Vehicle Excise Licences,24/08/2016,162468,515.00,BARCLAYCARD COMMERCIAL,X00207,2,2016
Allerdale Borough Council,15404,Supplies & Services,Legal Services,Reference Materials,18/05/2016,162469,310.00,SWEET & MAXWELL (THOMSON REUTERS),A00028,2,2016
Allerdale Borough Council,15401,Supplies & Services,Police & Crime Commissioner Election,General Stationery,18/05/2016,162470,621.80,SHAW & SONS LTD,A00025,2,2016
Allerdale Borough Council,12305,Premises,Corporate Property Maintenance,Inspections and Services,18/05/2016,162471,909.50,GILGEN DOOR SYSTEMS UK LTD,A00542,2,2016
Allerdale Borough Council,12307,Premises,Corporate Property Maintenance,Fixtures and Fittings,18/05/2016,162472,520.00,SHERIDAN LIFTS LIMITED,C00120,2,2016
Allerdale Borough Council,12401,Premises,Corporate Property Maintenance,Energy Management Charges,18/05/2016,162473,"1,921.00",SCHNEIDER ELECTRIC LTD,A00859,2,2016
Allerdale Borough Council,15101,Supplies & Services,Police & Crime Commissioner Election,Equipment Costs,25/05/2016,162474,600.00,SIGNET SIGNS LTD,A02001,2,2016
Allerdale Borough Council,15506,Supplies & Services,Allerdale Investment Partnership,Professional Services,11/05/2016,162475,694.50,FREETH CARTWRIGHT LLP,A01821,2,2016
Allerdale Borough Council,15103,Supplies & Services,Recycling,Purchase of Materials,01/06/2016,162476,"9,600.00",EGBERT H TAYLOR & COMPANY LTD,A01706,2,2016
Allerdale Borough Council,15802,Supplies & Services,IT Services,Hardware Maintenance,11/05/2016,162477,"2,702.90",INTRINSIC TECHNOLOGY LTD,A00902,2,2016
Allerdale Borough Council,15514,Supplies & Services,Mayor's Fund,Public Entertainment,11/05/2016,162478,450.00,ETOILE STRING QUARTET,A02322,2,2016
Allerdale Borough Council,15812,Supplies & Services,Shared Revs & Bens IT Costs,Software Development,11/05/2016,162479,"3,990.00",CAPITA BUSINESS SERVICES LTD,A01027,2,2016
Allerdale Borough Council,16150,Supplies & Services,Town Centre Management,General Promotions,11/05/2016,162480,93.75,GREENWICH LEISURE LTD (PREV CARLISLE LEISURE),A00136,2,2016
Allerdale Borough Council,15810,Supplies & Services,IT Services,Software Licences,25/05/2016,162481,"5,077.80",PHOENIX SOFTWARE LTD,A00229,2,2016
Allerdale Borough Council,15501,Supplies & Services,Food and Occupational Health,Consultants Fees,11/05/2016,162482,800.00,JONATHAN B JACKSON LTD,A00874,2,2016
Allerdale Borough Council,15505,Supplies & Services,Legal Services,Licences,18/05/2016,162483,250.00,LAWYERS IN LOCAL GOVERNMENT,A01878,2,2016
Allerdale Borough Council,10601,Employee Costs,Training,External Courses & Seminar Fees,01/06/2016,162484,25.00,KILLGERM CHEMICALS LTD,A00361,2,2016
Allerdale Borough Council,10601,Employee Costs,Training,External Courses & Seminar Fees,01/06/2016,162485,170.00,KILLGERM CHEMICALS LTD,A00361,2,2016
Allerdale Borough Council,12405,Premises,Homelessness,Rentals and Lease Charges,11/05/2016,162486,"1,215.39",HOME GROUP LTD,A00423,2,2016
Allerdale Borough Council,15501,Supplies & Services,Parks Development,Consultants Fees,18/05/2016,162487,500.00,Redacted information - included personal information ,A02110,2,2016
Allerdale Borough Council,15508,Supplies & Services,Building Control - Chargeable,Subscriptions,25/05/2016,162488,899.00,BSI GROUP,A00923,2,2016
Allerdale Borough Council,15404,Supplies & Services,KMAG Enhancement Activity,Reference Materials,11/05/2016,162489,82.00,UNICORN CREATIVE,A02132,2,2016
Allerdale Borough Council,15506,Supplies & Services,Food and Occupational Health,Professional Services,18/05/2016,162490,235.00,MPM NORTH WEST LIMITED,A00113,2,2016
Allerdale Borough Council,15803,Supplies & Services,IT Services,Hardware Purchase,08/06/2016,162491,25.07,MISCO,A00125,2,2016
Allerdale Borough Council,72104,Holding and Control Accounts,Debtor Control Account,Debtors (Control Account),11/05/2016,162492,11.00,Redacted information - included personal information ,M00888,2,2016
Allerdale Borough Council,16102,Supplies & Services,LEP Flood Recovery Events Funding,Regeneration Initiatives,11/05/2016,162493,"1,932.13",ROTARY CLUB OF COCKERMOUTH,M00748,2,2016
Allerdale Borough Council,54105,Capital Expenditure,Disabled Facilities Grants,Grants  Private Individuals (Capital),11/05/2016,162494,850.00,CONISTON CONSULTANTS LTD,X00210,2,2016
Allerdale Borough Council,54105,Capital Expenditure,Disabled Facilities Grants,Grants  Private Individuals (Capital),11/05/2016,162495,"1,595.00",DOLPHIN STAIRLIFTS CUMBRIA,X00107,2,2016
Allerdale Borough Council,10601,Employee Costs,Members Services,External Courses & Seminar Fees,24/08/2016,162496,"1,820.00",BARCLAYCARD COMMERCIAL,X00207,2,2016
Allerdale Borough Council,14101,Transport,Domestic Waste,Vehicle Leasing,18/05/2016,162497,"2,656.72",BPI RECYCLED PRODUCTS,A00318,2,2016
Allerdale Borough Council,15101,Supplies & Services,Recycling,Equipment Costs,18/05/2016,162498,"3,542.29",BPI RECYCLED PRODUCTS,A00318,2,2016
Allerdale Borough Council,15102,Supplies & Services,Recycling,Equipment Repair & Maintenance,11/05/2016,162499,"1,196.60",Redacted information - included personal information ,A00176,2,2016
Allerdale Borough Council,15500,Supplies & Services,Confidential Waste,Budget-Services,11/05/2016,162500,304.00,J DUFFY LTD T/A PW CONF BUS SERVICES,A01846,2,2016
Allerdale Borough Council,15500,Supplies & Services,Confidential Waste,Budget-Services,11/05/2016,162501,113.00,J DUFFY LTD T/A PW CONF BUS SERVICES,A01846,2,2016
Allerdale Borough Council,15300,Supplies & Services,Animal Welfare,Budget-Prov of Clothing and Equipment,01/06/2016,162502,13.40,ARCO LIMITED,A00045,2,2016
Allerdale Borough Council,15300,Supplies & Services,Animal Welfare,Budget-Prov of Clothing and Equipment,01/06/2016,162503,84.72,ARCO LIMITED,A00045,2,2016
Allerdale Borough Council,15101,Supplies & Services,Animal Welfare,Equipment Costs,18/05/2016,162504,187.50,PMC POLYTHENE LTD,A00194,2,2016
Allerdale Borough Council,15101,Supplies & Services,Parking Services Pay Group,Equipment Costs,11/05/2016,162505,57.99,ARCO LIMITED - HEAD OFFICE HULL,A00045,2,2016
Allerdale Borough Council,15101,Supplies & Services,Solway Wetlands Project,Equipment Costs,11/05/2016,162506,108.00,AIGUILLE LTD,A01992,2,2016
Allerdale Borough Council,15403,Supplies & Services,Chief Executive,Publications and Periodicals,11/05/2016,162507,11.25,P & D NEWSAGENTS,A00237,2,2016
Allerdale Borough Council,15103,Supplies & Services,Solway Wetlands Project,Purchase of Materials,11/05/2016,162508,180.14,Redacted information - included personal information ,A00264,2,2016
Allerdale Borough Council,15101,Supplies & Services,Solway Wetlands Project,Equipment Costs,11/05/2016,162509,31.74,ASHTEAD PLANT HIRE CO LTD,C00019,2,2016
Allerdale Borough Council,16102,Supplies & Services,LEP Flood Recovery Events Funding,Regeneration Initiatives,11/05/2016,162510,"1,020.00",POD (NORTH WEST) LIMITED,A01977,2,2016
Allerdale Borough Council,10601,Employee Costs,Training,External Courses & Seminar Fees,11/05/2016,162511,625.00,WISE OWL BUSINESS SOLUTIONS LTD,A02194,2,2016
Allerdale Borough Council,10401,Employee Costs,Building Control - Chargeable,Agency Staff Costs,11/05/2016,162512,525.00,A&H BUILDING CONTROL CONSULTANTS LTD,A02318,2,2016
Allerdale Borough Council,10401,Employee Costs,Building Control - Chargeable,Agency Staff Costs,11/05/2016,162513,945.00,A&H BUILDING CONTROL CONSULTANTS LTD,A02318,2,2016
Allerdale Borough Council,10601,Employee Costs,Training,External Courses & Seminar Fees,18/05/2016,162514,260.00,INSTITUTE OF CEMETERY & CREMATORIUM MANAGEMENT,A00958,2,2016
Allerdale Borough Council,10401,Employee Costs,Building Control - Chargeable,Agency Staff Costs,11/05/2016,162515,980.00,A&H BUILDING CONTROL CONSULTANTS LTD,A02318,2,2016
Allerdale Borough Council,10605,Employee Costs,Training,Travel,11/05/2016,162516,25.50,EILBECK RENTAL,A01161,2,2016
Allerdale Borough Council,10605,Employee Costs,Training,Travel,11/05/2016,162517,25.50,EILBECK RENTAL,A01161,2,2016
Allerdale Borough Council,15550,Supplies & Services,Financial Planning & Economic Growth,General-Service Related Fees,11/05/2016,162518,"3,333.33",BOWLES GREEN LIMITED,A00763,2,2016
Allerdale Borough Council,15101,Supplies & Services,Recycling,Equipment Costs,25/05/2016,162519,42.05,BPI RECYCLED PRODUCTS,A00318,2,2016
Allerdale Borough Council,15101,Supplies & Services,Recycling,Equipment Costs,25/05/2016,162520,"10,158.44",BPI RECYCLED PRODUCTS,A00318,2,2016
Allerdale Borough Council,16350,Supplies & Services,Parks and Grounds Maintenance,Miscellaneous Expenses,11/05/2016,162521,110.55,ENTERPRISE RENT A CAR,A01367,2,2016
Allerdale Borough Council,12101,Premises,Parks and Grounds Maintenance,External Maintenance & Decoration,11/05/2016,162522,935.00,ISS WATERERS LANDSCAPE,C00044,2,2016
Allerdale Borough Council,15804,Supplies & Services,IT Services,Computer Data Lines B.T.,11/05/2016,162523,"16,368.54",VODAFONE (PREV CABLE & WIRELESS),A00934,2,2016
Allerdale Borough Council,15803,Supplies & Services,IT Services,Hardware Purchase,18/05/2016,162524,"-6,539.00",UPGRADE OPTIONS LTD,A02316,2,2016
Allerdale Borough Council,15803,Supplies & Services,IT Services,Hardware Purchase,18/05/2016,162525,"6,539.00",UPGRADE OPTIONS LTD,A02316,2,2016
Allerdale Borough Council,15103,Supplies & Services,Solway Wetlands Project,Purchase of Materials,11/05/2016,162526,174.44,Redacted information - included personal information ,A00264,2,2016
Allerdale Borough Council,15103,Supplies & Services,Solway Wetlands Project,Purchase of Materials,11/05/2016,162527,-180.14,Redacted information - included personal information ,A00264,2,2016
Allerdale Borough Council,15101,Supplies & Services,Recycling,Equipment Costs,18/05/2016,162528,-65.00,BPI RECYCLED PRODUCTS,A00318,2,2016
Allerdale Borough Council,15604,Supplies & Services,Document Management Pay Group,Franking Machine refills,11/05/2016,162529,40.00,ROYAL MAIL LETTERS,X00021,2,2016
Allerdale Borough Council,15604,Supplies & Services,Document Management Pay Group,Franking Machine refills,11/05/2016,162530,40.00,ROYAL MAIL LETTERS,X00021,2,2016
Allerdale Borough Council,12408,Premises,Corporate Property Maintenance,Water & Sewage,11/05/2016,162531,199.37,UNITED UTILITIES ,X00011,2,2016
Allerdale Borough Council,15501,Supplies & Services,Revenue,Consultants Fees,18/05/2016,162532,150.00,JACOBS (BAILIFFS),A00495,2,2016
Allerdale Borough Council,12402,Premises,Corporate Property Maintenance,Electricity,11/05/2016,162533,19.06,BRITISH GAS,X00039,2,2016
Allerdale Borough Council,15103,Supplies & Services,Solway Wetlands Project,Purchase of Materials,11/05/2016,162534,49.54,TRAVIS PERKINS TRADING,A01117,2,2016
Allerdale Borough Council,12408,Premises,Corporate Property Maintenance,Water & Sewage,11/05/2016,162535,76.40,UNITED UTILITIES,X00011,2,2016
Allerdale Borough Council,12408,Premises,Corporate Property Maintenance,Water & Sewage,11/05/2016,162536,54.49,UNITED UTILITIES,X00011,2,2016
Allerdale Borough Council,12403,Premises,Corporate Property Maintenance,Gas,11/05/2016,162537,2.14,EON,X00016,2,2016
Allerdale Borough Council,20101,Third Party Payments,Recycling,Cleansing Contract,11/05/2016,162538,-147.95,CUMBRIA WASTE MANAGEMENT LTD,A01304,2,2016
Allerdale Borough Council,20101,Third Party Payments,Recycling,Cleansing Contract,11/05/2016,162539,-271.70,CUMBRIA WASTE MANAGEMENT LTD,A01304,2,2016
Allerdale Borough Council,20101,Third Party Payments,Recycling,Cleansing Contract,11/05/2016,162540,"-1,760.00",CUMBRIA WASTE MANAGEMENT LTD,A01304,2,2016
Allerdale Borough Council,20101,Third Party Payments,Recycling,Cleansing Contract,11/05/2016,162541,"-2,142.80",CUMBRIA WASTE MANAGEMENT LTD,A01304,2,2016
Allerdale Borough Council,20101,Third Party Payments,Recycling,Cleansing Contract,11/05/2016,162542,"-2,270.95",CUMBRIA WASTE MANAGEMENT LTD,A01304,2,2016
Allerdale Borough Council,15803,Supplies & Services,IT Services,Hardware Purchase,11/05/2016,162543,-668.04,STORM TECHNOLOGIES,A01018,2,2016
Allerdale Borough Council,15101,Supplies & Services,Recycling,Equipment Costs,25/05/2016,162544,"-2,656.72",BPI RECYCLED PRODUCTS,A00318,2,2016
Allerdale Borough Council,33150,Income,Credit Union,Other Fees Income,11/05/2016,162545,"14,294.53",THE ALLERDALE CREDIT UNION,A00493,2,2016
Allerdale Borough Council,15101,Supplies & Services,Recycling,Equipment Costs,11/05/2016,162546,"3,607.29",BPI RECYCLED PRODUCTS,A00318,2,2016
Allerdale Borough Council,15506,Supplies & Services,Environmental Protection,Professional Services,25/05/2016,162547,589.80,UNITED UTILITIES PLC,A01657,2,2016
Allerdale Borough Council,15703,Supplies & Services,IT Services,Call Charges,25/05/2016,162548,842.71,VODAFONE (PREV CABLE & WIRELESS),A00934,2,2016
Allerdale Borough Council,15804,Supplies & Services,IT Services,Computer Data Lines B.T.,25/05/2016,162549,"1,668.54",VODAFONE (PREV CABLE & WIRELESS),A00934,2,2016
Allerdale Borough Council,15514,Supplies & Services,Mayor's Fund,Public Entertainment,11/05/2016,162550,11.25,P & D NEWSAGENTS,A00237,2,2016
Allerdale Borough Council,15514,Supplies & Services,Mayor's Fund,Public Entertainment,11/05/2016,162551,"2,337.33",HUNDITH HILL HOTEL,A00111,2,2016
Allerdale Borough Council,14101,Transport,Mayoral Services,Vehicle Leasing,11/05/2016,162552,30.00,ACE TAXIS,A01927,2,2016
Allerdale Borough Council,14101,Transport,Mayoral Services,Vehicle Leasing,11/05/2016,162553,165.00,ACE TAXIS,A01927,2,2016
Allerdale Borough Council,12305,Premises,Corporate Property Maintenance,Inspections and Services,18/05/2016,162554,280.00,GILGEN DOOR SYSTEMS UK LTD,A00542,2,2016
Allerdale Borough Council,10401,Employee Costs,Customer Services Pay Group,Agency Staff Costs,18/05/2016,162555,279.60,ADECCO RECRUITMENT,A00188,2,2016
Allerdale Borough Council,15101,Supplies & Services,Public Building Cleaning,Equipment Costs,25/05/2016,162556,202.00,THE RADAR KEY COMPANY,A01610,2,2016
Allerdale Borough Council,12103,Premises,Harrington Harbour,Grounds Maintenance,18/05/2016,162557,27.66,WCF PET & EQUESTRIAN,A02275,2,2016
Allerdale Borough Council,12305,Premises,Corporate Property Maintenance,Inspections and Services,25/05/2016,162558,"1,126.00",GILGEN DOOR SYSTEMS UK LTD,A00542,2,2016
Allerdale Borough Council,15101,Supplies & Services,Public Building Cleaning,Equipment Costs,18/05/2016,162559,577.98,INSTOCK (CHANDLERS),A00050,2,2016
Allerdale Borough Council,12203,Premises,Public Convenience Cleaning,Plumbing and Heating Maintenance,18/05/2016,162560,834.00,Redacted information - included personal information ,C00008,2,2016
Allerdale Borough Council,12101,Premises,Car Parks Inspection & Maintenance,External Maintenance & Decoration,18/05/2016,162561,280.00,Redacted information - included personal information ,C00008,2,2016
Allerdale Borough Council,12101,Premises,Corporate Property Maintenance,External Maintenance & Decoration,18/05/2016,162562,400.00,ENGINEERING (BARB) PIPEWORKS,A00903,2,2016
Allerdale Borough Council,10401,Employee Costs,Parking Services Pay Group,Agency Staff Costs,01/06/2016,162563,242.80,PRACTICUS LTD,A02237,2,2016
Allerdale Borough Council,15603,Supplies & Services,Document Management Pay Group,Franking Machine Costs,18/05/2016,162564,300.00,THE MAILING ROOM (TMR EXECUTIVE AGENCY LTD),A00733,2,2016
Allerdale Borough Council,15103,Supplies & Services,Parks Development,Purchase of Materials,18/05/2016,162565,"4,053.34",LOW CARBON PRODUCTS T/A BRITISH RECYCLED PLASTIC,A02299,2,2016
Allerdale Borough Council,20150,Third Party Payments,Footway Lighting Scheme,General Partnership Service Fees,31/05/2016,162566,0.01,ELECTRICITY NORTH WEST LTD,A00471,2,2016
Allerdale Borough Council,20300,Third Party Payments,Parks and Grounds Maintenance,Budget-Contract Services,25/05/2016,162567,"72,649.00",ISS WATERERS LANDSCAPE,C00044,2,2016
Allerdale Borough Council,15502,Supplies & Services,Legal Services,Land Registry Fees,06/05/2016,162568,122.00,HM LAND REGISTRY,A00505,2,2016
Allerdale Borough Council,15502,Supplies & Services,Legal Services,Land Registry Fees,09/05/2016,162569,52.00,HM LAND REGISTRY,A00505,2,2016
Allerdale Borough Council,15502,Supplies & Services,Legal Services,Land Registry Fees,10/05/2016,162570,12.00,HM LAND REGISTRY,A00505,2,2016
Allerdale Borough Council,15502,Supplies & Services,Legal Services,Land Registry Fees,12/05/2016,162571,69.00,HM LAND REGISTRY,A00505,2,2016
Allerdale Borough Council,21150,Transfer Payments,Solway Wetlands Project,General Grants,18/05/2016,162572,"6,000.00",CUMBRIA CC,A00066,2,2016
Allerdale Borough Council,15501,Supplies & Services,Planning and Development,Consultants Fees,18/05/2016,162573,540.00,KEPPIE MASSIE,A01574,2,2016
Allerdale Borough Council,15506,Supplies & Services,Banking and Interest,Professional Services,18/05/2016,162574,780.00,CUMBRIA LGPS - CARLISLE,M00626,2,2016
Allerdale Borough Council,15811,Supplies & Services,IT Services,Software Maintenance,23/05/2016,162575,264.99,SAGE (UK) LTD,A01911,2,2016
Allerdale Borough Council,15404,Supplies & Services,Insurances,Reference Materials,25/05/2016,162576,"1,660.00",CIPFA,A00572,2,2016
Allerdale Borough Council,15405,Supplies & Services,Parking Services Pay Group,Use of External Printers,18/05/2016,162577,500.00,FIRPRESS PRINTERS,A00063,2,2016
Allerdale Borough Council,15303,Supplies & Services,Food and Occupational Health,Laundry,18/05/2016,162578,104.92,BERENDSEN UK LTD,A00027,2,2016
Allerdale Borough Council,12405,Premises,Homelessness,Rentals and Lease Charges,18/05/2016,162579,"10,605.53",DERWENT & SOLWAY - YOUR HOUSING,A00219,2,2016
Allerdale Borough Council,12303,Premises,Corporate Property Maintenance,Window Cleaning,18/05/2016,162580,470.00,BORDERBRITE LTD,C00155,2,2016
Allerdale Borough Council,15405,Supplies & Services,Npower Energy Efficiency Programme,Use of External Printers,18/05/2016,162581,192.00,FIRPRESS PRINTERS,A00063,2,2016
Allerdale Borough Council,50199,Capital Expenditure,Housing Improvement Projects,Purchase Price (Capital),18/05/2016,162582,500.00,THE GOVERNMENT LEGAL DEPARTMENT,A02329,2,2016
Allerdale Borough Council,12408,Premises,Public Convenience Cleaning,Water & Sewage,25/05/2016,162583,64.74,RM WATER SERVICES,C00121,2,2016
Allerdale Borough Council,10601,Employee Costs,Training,External Courses & Seminar Fees,01/06/2016,162584,145.00,R H ENVIRONMENTAL LTD,A01718,2,2016
Allerdale Borough Council,10601,Employee Costs,Training,External Courses & Seminar Fees,25/05/2016,162585,150.00,RICARDO-AEA LTD,A01816,2,2016
Allerdale Borough Council,10202,Employee Costs,Human Resources Pay Group,Medical Screening,25/05/2016,162586,212.18,WELLWORK LTD,A00029,2,2016
Allerdale Borough Council,10401,Employee Costs,Building Control - Chargeable,Agency Staff Costs,18/05/2016,162587,875.00,A&H BUILDING CONTROL CONSULTANTS LTD,A02318,2,2016
Allerdale Borough Council,16150,Supplies & Services,"The Hub, Workington Town Centre",General Promotions,25/05/2016,162588,120.34,PPL,A00246,2,2016
Allerdale Borough Council,16102,Supplies & Services,LEP Flood Recovery Events Funding,Regeneration Initiatives,25/05/2016,162589,280.00,POD (NORTH WEST) LIMITED,A01977,2,2016
Allerdale Borough Council,15808,Supplies & Services,IT Services,Computer Consumables,08/06/2016,162590,19.07,UPGRADE OPTIONS LTD,A02316,2,2016
Allerdale Borough Council,12101,Premises,Parks and Grounds Maintenance,External Maintenance & Decoration,18/05/2016,162591,200.00,EW & PA NICHOLSON LTD,A01268,2,2016
Allerdale Borough Council,12201,Premises,Corporate Property Maintenance,Internal Maintenance,01/06/2016,162592,"1,076.52",NPS NORTH WEST LTD,A01708,2,2016
Allerdale Borough Council,12401,Premises,Corporate Property Maintenance,Energy Management Charges,08/06/2016,162593,652.40,SCHNEIDER ELECTRIC LTD,A00859,2,2016
Allerdale Borough Council,15405,Supplies & Services,Police & Crime Commissioner Election,Use of External Printers,25/05/2016,162594,"12,186.83",ADARE SEC LIMITED,A02306,2,2016
Allerdale Borough Council,12101,Premises,Public Convenience Cleaning,External Maintenance & Decoration,18/05/2016,162595,110.00,UNBLOCK CUMBRIA LTD,C00005,2,2016
Allerdale Borough Council,15505,Supplies & Services,Licensing Service,Licences,18/05/2016,162596,130.00,Redacted information - included personal information ,M00889,2,2016
Allerdale Borough Council,54105,Capital Expenditure,Disabled Facilities Grants,Grants  Private Individuals (Capital),18/05/2016,162597,"2,336.38",BLUE FLAME SERVICES LTD,X00213,2,2016
Allerdale Borough Council,54105,Capital Expenditure,Disabled Facilities Grants,Grants  Private Individuals (Capital),18/05/2016,162598,"5,503.88",DOLPHIN STAIRLIFTS CUMBRIA,X00107,2,2016
Allerdale Borough Council,54105,Capital Expenditure,Disabled Facilities Grants,Grants  Private Individuals (Capital),18/05/2016,162599,"3,371.00",PARTNERSHIP IN PROPERTY MANAGEMENT LTD,X00120,2,2016
Allerdale Borough Council,54105,Capital Expenditure,Disabled Facilities Grants,Grants  Private Individuals (Capital),18/05/2016,162600,"4,190.00",DOLPHIN STAIRLIFTS CUMBRIA,X00107,2,2016
Allerdale Borough Council,54105,Capital Expenditure,Disabled Facilities Grants,Grants  Private Individuals (Capital),18/05/2016,162601,"1,297.00",DOLPHIN STAIRLIFTS CUMBRIA,X00107,2,2016
Allerdale Borough Council,54105,Capital Expenditure,Disabled Facilities Grants,Grants  Private Individuals (Capital),18/05/2016,162602,"3,850.00",DOLPHIN STAIRLIFTS CUMBRIA,X00107,2,2016
Allerdale Borough Council,15505,Supplies & Services,Licensing Service,Licences,18/05/2016,162603,125.00,DJH SILLOTH LTD T/A SOLWAY PRIVATE HIRE,M00890,2,2016
Allerdale Borough Council,15505,Supplies & Services,Licensing Service,Licences,18/05/2016,162604,37.00,Redacted information - included personal information ,M00891,2,2016
Allerdale Borough Council,16150,Supplies & Services,"The Hub, Workington Town Centre",General Promotions,18/05/2016,162605,30.00,POD (NORTH WEST) LIMITED,A01977,2,2016
Allerdale Borough Council,14105,Transport,Parking Services Pay Group,"Fuel, Lubricants & Consumables",23/05/2016,162606,449.67,BP OIL UK LTD ,X00022,2,2016
Allerdale Borough Council,16102,Supplies & Services,BEC Social Investment Fund,Regeneration Initiatives,18/05/2016,162607,350.00,FUSION GO LIMITED,A02097,2,2016
Allerdale Borough Council,15103,Supplies & Services,Solway Wetlands Project,Purchase of Materials,18/05/2016,162608,"1,500.00",Redacted information - included personal information ,A01981,2,2016
Allerdale Borough Council,15103,Supplies & Services,Homelessness,Purchase of Materials,18/05/2016,162609,660.00,AA CARPETS LTD,C00031,2,2016
Allerdale Borough Council,14202,Transport,Solway Coast AONB Core Funding,Hire Car and petrol,18/05/2016,162610,28.49,ENTERPRISE RENT A CAR,A01367,2,2016
Allerdale Borough Council,16101,Supplies & Services,Planning and Development,Statutory Notices,18/05/2016,162611,369.04,CUMBRIAN NEWSPAPERS LIMITED,A00869,2,2016
Allerdale Borough Council,16101,Supplies & Services,Planning and Development,Statutory Notices,18/05/2016,162612,514.21,CUMBRIAN NEWSPAPERS LIMITED,A00869,2,2016
Allerdale Borough Council,15400,Supplies & Services,Revenue,"Budget-Printing,Stationery & Office Supp",25/05/2016,162613,86.11,CUMBRIA MAILING SERVICE,A00086,2,2016
Allerdale Borough Council,15401,Supplies & Services,Building Control - Chargeable,General Stationery,25/05/2016,162614,69.04,HEATONS OFFICE SOLUTION (PREV LAKELAND/INTEGRITY),A00069,2,2016
Allerdale Borough Council,10601,Employee Costs,Head of Housing & Health,External Courses & Seminar Fees,01/06/2016,162615,920.00,OCEAN MEDIA GROUP LTD,A01221,2,2016
Allerdale Borough Council,12101,Premises,Corporate Property Maintenance,External Maintenance & Decoration,08/06/2016,162616,"2,880.00",WYG ENGINEERING LTD,A00155,2,2016
Allerdale Borough Council,12101,Premises,Corporate Property Maintenance,External Maintenance & Decoration,18/05/2016,162617,200.00,Redacted information - included personal information ,A00442,2,2016
Allerdale Borough Council,15101,Supplies & Services,Public Building Cleaning,Equipment Costs,18/05/2016,162618,204.20,WF HYGIENE & CLEANING SUPPLIES,A01794,2,2016
Allerdale Borough Council,14105,Transport,Animal Welfare,"Fuel, Lubricants & Consumables",18/05/2016,162619,206.52,HI-Q TYRESERVICES,A00313,2,2016
Allerdale Borough Council,15511,Supplies & Services,Street Cleansing,Removal of Vehicles,25/05/2016,162620,250.00,MICHAEL DOUGLAS AUTO SALVAGE,A00078,2,2016
Allerdale Borough Council,15405,Supplies & Services,Recycling,Use of External Printers,25/05/2016,162621,301.00,FIRPRESS PRINTERS,A00063,2,2016
Allerdale Borough Council,15405,Supplies & Services,Recycling,Use of External Printers,25/05/2016,162622,193.00,FIRPRESS PRINTERS,A00063,2,2016
Allerdale Borough Council,15300,Supplies & Services,Animal Welfare,Budget-Prov of Clothing and Equipment,08/06/2016,162623,46.96,ARCO LIMITED - HEAD OFFICE HULL,A00045,2,2016
Allerdale Borough Council,34150,Income,Environmental Services Pay Group,General Recovery of Other Costs-Income,18/05/2016,162624,"2,275.00",DOBIES VAUXHALL,A00254,2,2016
Allerdale Borough Council,10900,Employee Costs,Workington Nature Partnership,Budget-Contrib to Employee Related Prov,18/05/2016,162625,195.00,IDOX SOFTWARE LTD,A00291,2,2016
Allerdale Borough Council,15303,Supplies & Services,Food and Occupational Health,Laundry,18/05/2016,162626,83.93,BERENDSEN UK LTD,A00027,2,2016
Allerdale Borough Council,15103,Supplies & Services,Recycling,Purchase of Materials,08/06/2016,162627,"8,270.00",EGBERT H TAYLOR & COMPANY LTD,A01706,2,2016
Allerdale Borough Council,20111,Third Party Payments,Grants to Voluntary Organisation,Voluntary Organisations,18/05/2016,162628,"1,800.00",CUMBRIA ADVICE NETWORK,M00894,2,2016
Allerdale Borough Council,51101,Capital Expenditure,New Leisure Facility,External Contractor Payments (Capital),18/05/2016,162629,"527,233.70",WILLMOTT DIXON CAPITAL WORKS LTD,C00127,2,2016
Allerdale Borough Council,52107,Capital Expenditure,Evolution Centre Food Bank Works,Removal Costs (Capital),18/05/2016,162630,"1,190.00",Redacted information - included personal information ,C00008,2,2016
Allerdale Borough Council,15601,Supplies & Services,Benefits,Postage,18/05/2016,162631,"1,434.56",ROYAL MAIL LETTERS,X00021,2,2016
Allerdale Borough Council,12408,Premises,Public Convenience Cleaning,Water & Sewage,18/05/2016,162632,"1,065.31",UNITED UTILITIES ,X00011,2,2016
Allerdale Borough Council,15101,Supplies & Services,Parking Services Pay Group,Equipment Costs,01/06/2016,162633,-57.99,ARCO LIMITED - HEAD OFFICE HULL,A00045,2,2016
Allerdale Borough Council,15503,Supplies & Services,Legal Services,Court and Tribunal Costs,24/05/2016,162634,180.00,HM COURTS & TRIBUNAL SERVICE,A02221,2,2016
Allerdale Borough Council,12403,Premises,Corporate Property Maintenance,Gas,18/05/2016,162635,164.64,BRITISH GAS ,X00039,2,2016
Allerdale Borough Council,15600,Supplies & Services,Electoral Registration,Budget-Postal Services,18/05/2016,162636,256.79,ROYAL MAIL LETTERS,X00021,2,2016
Allerdale Borough Council,15101,Supplies & Services,Parking Services Pay Group,Equipment Costs,01/06/2016,162637,57.99,ARCO LIMITED - HEAD OFFICE HULL,A00045,2,2016
Allerdale Borough Council,12408,Premises,Corporate Property Maintenance,Water & Sewage,18/05/2016,162638,"1,754.50",UNITED UTILITIES,X00011,2,2016
Allerdale Borough Council,12408,Premises,Corporate Property Maintenance,Water & Sewage,18/05/2016,162639,14.61,UNITED UTILITIES,X00011,2,2016
Allerdale Borough Council,20150,Third Party Payments,Footway Lighting Scheme,General Partnership Service Fees,31/05/2016,162640,-0.01,ELECTRICITY NORTH WEST LTD,A00471,2,2016
Allerdale Borough Council,12403,Premises,Corporate Property Maintenance,Gas,18/05/2016,162641,5.14,EON,X00016,2,2016
Allerdale Borough Council,81606,Balance Sheet,General Fund,Provisions-Curwen Land Slip (BSheet),18/05/2016,162642,"75,214.98",BELL PARK KERRIDGE,A01759,2,2016
Allerdale Borough Council,16350,Supplies & Services,Leaders Portfolio,Miscellaneous Expenses,18/05/2016,162643,"3,000.00",KESWICK TOWN COUNCIL,A00253,2,2016
Allerdale Borough Council,20150,Third Party Payments,Footways,General Partnership Service Fees,18/05/2016,162644,"3,730.83",CUMBRIA CC - GENERAL,A00066,2,2016
Allerdale Borough Council,12408,Premises,Corporate Property Maintenance,Water & Sewage,25/05/2016,162645,104.89,RM WATER SERVICES,C00121,2,2016
Allerdale Borough Council,15550,Supplies & Services,Financial Planning & Economic Growth,General-Service Related Fees,01/06/2016,162646,620.11,MOTT MACDONALD LTD,C00161,2,2016
Allerdale Borough Council,15506,Supplies & Services,Environmental Protection,Professional Services,18/05/2016,162647,364.00,ET ENVIRONMENTAL CONSULTANCY LTD,A02170,2,2016
Allerdale Borough Council,10401,Employee Costs,Elections,Agency Staff Costs,08/06/2016,162648,"12,826.40",ASSOCIATION OF ELECTORAL ADMIN,A00189,2,2016
Allerdale Borough Council,15601,Supplies & Services,Benefits,Postage,18/05/2016,162649,"14,322.91",ROYAL MAIL LETTERS,X00021,2,2016
Allerdale Borough Council,15506,Supplies & Services,Legal Services,Professional Services,25/05/2016,162650,"2,400.00",18 ST JOHN ST CHAMBERS,A01923,2,2016
Allerdale Borough Council,15506,Supplies & Services,Legal Services,Professional Services,25/05/2016,162651,359.10,BOND DICKINSON LLP,A01933,2,2016
Allerdale Borough Council,81608,Balance Sheet,General Fund,Legal Provisions,25/05/2016,162652,"5,546.25",WYG ENGINEERING LTD,A00155,2,2016
Allerdale Borough Council,15506,Supplies & Services,Legal Services,Professional Services,25/05/2016,162653,60.00,BURNETTS SOLICITORS,A00129,2,2016
Allerdale Borough Council,15506,Supplies & Services,Legal Services,Professional Services,25/05/2016,162654,123.20,BURNETTS SOLICITORS,A00129,2,2016
Allerdale Borough Council,81608,Balance Sheet,General Fund,Legal Provisions,25/05/2016,162655,805.00,WYG ENGINEERING LTD,A00155,2,2016
Allerdale Borough Council,15103,Supplies & Services,Solway Wetlands Project,Purchase of Materials,25/05/2016,162656,172.50,DF TIMBER LTD,A02325,2,2016
Allerdale Borough Council,81608,Balance Sheet,General Fund,Legal Provisions,25/05/2016,162657,"3,856.67",Redacted information - included personal information ,M00690,2,2016
Allerdale Borough Council,15502,Supplies & Services,Legal Services,Land Registry Fees,31/05/2016,162658,62.00,HM LAND REGISTRY ,A00505,2,2016
Allerdale Borough Council,15502,Supplies & Services,Legal Services,Land Registry Fees,31/05/2016,162659,72.00,HM LAND REGISTRY ,A00505,2,2016
Allerdale Borough Council,15506,Supplies & Services,Legal Services,Professional Services,25/05/2016,162660,"7,500.00",Redacted information - included personal information ,M00874,2,2016
Allerdale Borough Council,54105,Capital Expenditure,Disabled Facilities Grants,Grants  Private Individuals (Capital),25/05/2016,162661,"4,090.00",DOLPHIN STAIRLIFTS CUMBRIA,X00107,2,2016
Allerdale Borough Council,54105,Capital Expenditure,Disabled Facilities Grants,Grants  Private Individuals (Capital),25/05/2016,162662,"1,720.00",TOP NOTCH CONTRACTORS LTD,X00165,2,2016
Allerdale Borough Council,54105,Capital Expenditure,Disabled Facilities Grants,Grants  Private Individuals (Capital),25/05/2016,162663,"3,094.00",BLUE FLAME SERVICES LTD,X00213,2,2016
Allerdale Borough Council,15506,Supplies & Services,Communications and Marketing,Professional Services,25/05/2016,162664,"2,250.00",ELSWORTH COMMUNICATIONS,A01869,2,2016
Allerdale Borough Council,12103,Premises,Coastal Protection and Inland Flooding,Grounds Maintenance,25/05/2016,162665,"2,464.50",WYG ENGINEERING LTD,A00155,2,2016
Allerdale Borough Council,20110,Third Party Payments,Trade Waste,Other Local Authorities,25/05/2016,162666,"79,971.00",CUMBRIA CC - GENERAL,A00066,2,2016
Allerdale Borough Council,33113,Income,Building Control - Chargeable,Building Control Fees Income,25/05/2016,162667,162.04,Redacted information - included personal information ,M00895,2,2016
Allerdale Borough Council,33113,Income,Building Control - Chargeable,Building Control Fees Income,25/05/2016,162668,434.10,Redacted information - included personal information ,M00896,2,2016
Allerdale Borough Council,34150,Income,Mayors Charity,General Recovery of Other Costs-Income,25/05/2016,162669,"1,349.00",BARNARDOS,M00897,2,2016
Allerdale Borough Council,34150,Income,Mayors Charity,General Recovery of Other Costs-Income,25/05/2016,162670,"1,349.00",CFM CASH FOR KIDS,M00898,2,2016
Allerdale Borough Council,33112,Income,Planning and Development,Planning Fees Income,25/05/2016,162671,"1,540.00",SHAUN  BELL LTD,M00899,2,2016
Allerdale Borough Council,21100,Transfer Payments,Environmental Initiatives,Budget-Grants Paid,25/05/2016,162672,"2,320.00",KESWICK IN BLOOM,A00961,2,2016
Allerdale Borough Council,15506,Supplies & Services,Legal Services,Professional Services,25/05/2016,162673,157.50,FREETH CARTWRIGHT LLP,A01821,2,2016
Allerdale Borough Council,51101,Capital Expenditure,Flooding/Landslip,External Contractor Payments (Capital),08/06/2016,162674,"2,226.00",WYG ENGINEERING LTD,A00155,2,2016
Allerdale Borough Council,15101,Supplies & Services,Public Building Cleaning,Equipment Costs,01/06/2016,162675,14.34,WF HYGIENE & CLEANING SUPPLIES,A01794,2,2016
Allerdale Borough Council,15508,Supplies & Services,Land Charges Service,Subscriptions,25/05/2016,162676,115.00,LOCAL LAND CHARGES INSTITUTE,A00894,2,2016
Allerdale Borough Council,15550,Supplies & Services,Licensing Service,General-Service Related Fees,25/05/2016,162677,24.00,ORBIS PROTECT LTD (PREV SITEXORBIS LIMITED),A00679,2,2016
Allerdale Borough Council,10401,Employee Costs,Licensing Pay Group,Agency Staff Costs,25/05/2016,162678,181.40,ADECCO RECRUITMENT,A00188,2,2016
Allerdale Borough Council,10401,Employee Costs,Licensing Pay Group,Agency Staff Costs,25/05/2016,162679,447.23,ADECCO RECRUITMENT,A00188,2,2016
Allerdale Borough Council,10401,Employee Costs,Licensing Pay Group,Agency Staff Costs,25/05/2016,162680,369.05,ADECCO RECRUITMENT,A00188,2,2016
Allerdale Borough Council,15101,Supplies & Services,Police & Crime Commissioner Election,Equipment Costs,29/06/2016,162681,607.50,MANCHESTER CITY COUNCIL,A00791,2,2016
Allerdale Borough Council,15506,Supplies & Services,Legal Services,Professional Services,25/05/2016,162682,"1,476.00",BEVAN BRITTAN LLP,A02181,2,2016
Allerdale Borough Council,15904,Supplies & Services,Members Services,Training,01/06/2016,162683,125.00,JIM DAVIS PHOTOGRAPHY,A00627,2,2016
Allerdale Borough Council,16150,Supplies & Services,LEP Flood Recovery Events Funding,General Promotions,01/06/2016,162684,"6,000.00",CN EVENTS MANAGEMENT,A01099,2,2016
Allerdale Borough Council,15401,Supplies & Services,Document Management Pay Group,General Stationery,25/05/2016,162685,273.84,LYRECO,A00043,2,2016
Allerdale Borough Council,52107,Capital Expenditure,Evolution Centre Food Bank Works,Removal Costs (Capital),25/05/2016,162686,"4,832.40",J & J ELECTRICAL (CUMBRIA) LTD,C00038,2,2016
Allerdale Borough Council,16350,Supplies & Services,Chief Executive,Miscellaneous Expenses,25/05/2016,162687,160.00,THE STILWELL STUDIO,A00294,2,2016
Allerdale Borough Council,15506,Supplies & Services,Legal Services,Professional Services,25/05/2016,162688,598.50,BOND DICKINSON LLP,A01933,2,2016
Allerdale Borough Council,12401,Premises,Corporate Property Maintenance,Energy Management Charges,08/06/2016,162689,"1,172.00",TYCO FIRE&INTEGRATED SOLUTIONS,A00773,2,2016
Allerdale Borough Council,15401,Supplies & Services,Document Management Pay Group,General Stationery,25/05/2016,162690,105.00,LYRECO,A00043,2,2016
Allerdale Borough Council,15508,Supplies & Services,Building Control - Chargeable,Subscriptions,25/05/2016,162691,752.00,BSI GROUP,A00923,2,2016
Allerdale Borough Council,15103,Supplies & Services,Solway Wetlands Project,Purchase of Materials,25/05/2016,162692,26.31,DF TIMBER LTD,A02325,2,2016
Allerdale Borough Council,12201,Premises,Corporate Property Maintenance,Internal Maintenance,25/05/2016,162693,"2,200.00",DAY CUMMINS LIMITED,A00131,2,2016
Allerdale Borough Council,15508,Supplies & Services,Corporate Management,Subscriptions,15/06/2016,162694,330.00,DISTRICT COUNCILS NETWORK,A01466,2,2016
Allerdale Borough Council,15103,Supplies & Services,Recycling,Purchase of Materials,15/06/2016,162695,"2,987.70",PLASTIC OMNIUM URBAN SYSTEMS LTD,A00159,2,2016
Allerdale Borough Council,15501,Supplies & Services,Street Cleansing,Consultants Fees,08/06/2016,162696,16.00,DUNDAS CHEMICAL CO (MOSSPARK),A00175,2,2016
Allerdale Borough Council,15401,Supplies & Services,Document Management Pay Group,General Stationery,25/05/2016,162697,18.00,LYRECO,A00043,2,2016
Allerdale Borough Council,15401,Supplies & Services,Document Management Pay Group,General Stationery,25/05/2016,162698,91.40,LYRECO,A00043,2,2016
Allerdale Borough Council,15405,Supplies & Services,Members Services,Use of External Printers,25/05/2016,162699,468.00,MIKE TAYLOR PRINTING SERVICES,A02002,2,2016
Allerdale Borough Council,20150,Third Party Payments,Corporate Property Maintenance,General Partnership Service Fees,25/05/2016,162700,245.95,ORIAN SOLUTIONS LTD,A01814,2,2016
Allerdale Borough Council,15101,Supplies & Services,Corporate Property Maintenance,Equipment Costs,25/05/2016,162701,20.00,CENTRIC OFFICE SOLUTIONS,A00065,2,2016
Allerdale Borough Council,12101,Premises,Corporate Property Maintenance,External Maintenance & Decoration,25/05/2016,162702,796.00,WISE CONTRACTING GROUP LTD,C00169,2,2016
Allerdale Borough Council,15904,Supplies & Services,Members Services,Training,25/05/2016,162703,16.00,THE STILWELL STUDIO,A00294,2,2016
Allerdale Borough Council,15508,Supplies & Services,Members Services,Subscriptions,08/06/2016,162704,300.00,HOEY AINSCOUGH ASSOCIATES LTD,A01683,2,2016
Allerdale Borough Council,15405,Supplies & Services,Members Services,Use of External Printers,25/05/2016,162705,12.00,FIRPRESS PRINTERS,A00063,2,2016
Allerdale Borough Council,15403,Supplies & Services,Chief Executive,Publications and Periodicals,25/05/2016,162706,140.00,THE MJ,A01494,2,2016
Allerdale Borough Council,15101,Supplies & Services,New Ways of Working,Equipment Costs,25/05/2016,162707,"1,355.31",CENTRIC OFFICE SOLUTIONS,A00065,2,2016
Allerdale Borough Council,15501,Supplies & Services,Homelessness,Consultants Fees,25/05/2016,162708,60.00,BEECHWOOD GROUP PRACTICE,A00533,2,2016
Allerdale Borough Council,15101,Supplies & Services,Health & Wellbeing Group,Equipment Costs,25/05/2016,162709,440.45,CENTRIC OFFICE SOLUTIONS,A00065,2,2016
Allerdale Borough Council,10605,Employee Costs,Training,Travel,25/05/2016,162710,25.50,EILBECK RENTAL,A01161,2,2016
Allerdale Borough Council,51101,Capital Expenditure,New Leisure Facility,External Contractor Payments (Capital),01/06/2016,162711,950.00,RAB CONSULTANTS LTD,A02311,2,2016
Allerdale Borough Council,15811,Supplies & Services,Direct Debits & System Development,Software Maintenance,25/05/2016,162712,400.00,TOTALMOBILE LIMITED,A01712,2,2016
Allerdale Borough Council,12350,Premises,Insurances,General-Facilities Management,25/05/2016,162713,"3,512.30",THOMAS ARMSTRONG - CONSTRUCTION,C00003,2,2016
Allerdale Borough Council,15808,Supplies & Services,Multi-functional Printers,Computer Consumables,25/05/2016,162714,211.00,ANTALIS LIMITED,A00122,2,2016
Allerdale Borough Council,15401,Supplies & Services,Document Management Pay Group,General Stationery,25/05/2016,162715,83.64,LYRECO,A00043,2,2016
Allerdale Borough Council,15401,Supplies & Services,Document Management Pay Group,General Stationery,25/05/2016,162716,29.72,LYRECO,A00043,2,2016
Allerdale Borough Council,15506,Supplies & Services,Finance and Accounting Pay Group,Professional Services,01/06/2016,162717,"5,250.00",RSM UK TAX & ACCOUNTING LTD (PREV BAKER TILLY),A02015,2,2016
Allerdale Borough Council,10605,Employee Costs,Training,Travel,25/05/2016,162718,59.92,ENTERPRISE RENT A CAR,A01367,2,2016
Allerdale Borough Council,16001,Supplies & Services,Banking and Interest,Bank Charges and Fees,25/05/2016,162719,15.27,ALLPAY.NET LIMITED,A00714,2,2016
Allerdale Borough Council,16001,Supplies & Services,Banking and Interest,Bank Charges and Fees,25/05/2016,162720,15.27,ALLPAY.NET LIMITED,A00714,2,2016
Allerdale Borough Council,16001,Supplies & Services,Banking and Interest,Bank Charges and Fees,25/05/2016,162721,30.36,ALLPAY.NET LIMITED,A00714,2,2016
Allerdale Borough Council,16001,Supplies & Services,Banking and Interest,Bank Charges and Fees,25/05/2016,162722,21.30,ALLPAY.NET LIMITED,A00714,2,2016
Allerdale Borough Council,16001,Supplies & Services,Banking and Interest,Bank Charges and Fees,25/05/2016,162723,35.53,ALLPAY.NET LIMITED,A00714,2,2016
Allerdale Borough Council,16001,Supplies & Services,Banking and Interest,Bank Charges and Fees,25/05/2016,162724,39.83,ALLPAY.NET LIMITED,A00714,2,2016
Allerdale Borough Council,16001,Supplies & Services,Banking and Interest,Bank Charges and Fees,25/05/2016,162725,29.05,ALLPAY.NET LIMITED,A00714,2,2016
Allerdale Borough Council,16001,Supplies & Services,Banking and Interest,Bank Charges and Fees,25/05/2016,162726,"1,691.44",ALLPAY.NET LIMITED,A00714,2,2016
Allerdale Borough Council,16001,Supplies & Services,Banking and Interest,Bank Charges and Fees,25/05/2016,162727,15.88,ALLPAY.NET LIMITED,A00714,2,2016
Allerdale Borough Council,16001,Supplies & Services,Banking and Interest,Bank Charges and Fees,25/05/2016,162728,61.81,ALLPAY.NET LIMITED,A00714,2,2016
Allerdale Borough Council,15506,Supplies & Services,Bereavement Services,Professional Services,25/05/2016,162729,900.00,KINGS CHAMBERS,A00348,2,2016
Allerdale Borough Council,15508,Supplies & Services,Housing & Health Pay Group,Subscriptions,08/06/2016,162730,703.33,SINGLELAW,A02072,2,2016
Allerdale Borough Council,15506,Supplies & Services,Sports Development,Professional Services,25/05/2016,162731,66.00,THE SELF COACH,A02328,2,2016
Allerdale Borough Council,15604,Supplies & Services,Document Management Pay Group,Franking Machine refills,25/05/2016,162732,"3,599.00",ROYAL MAIL LETTERS,X00021,2,2016
Allerdale Borough Council,12402,Premises,Corporate Property Maintenance,Electricity,25/05/2016,162733,664.43,SOUTHERN ELECTRIC,X00018,2,2016
Allerdale Borough Council,12408,Premises,Public Convenience Cleaning,Water & Sewage,25/05/2016,162734,101.37,UNITED UTILITIES ,X00011,2,2016
Allerdale Borough Council,12408,Premises,Public Convenience Cleaning,Water & Sewage,25/05/2016,162735,671.20,UNITED UTILITIES ,X00011,2,2016
Allerdale Borough Council,12408,Premises,Corporate Property Maintenance,Water & Sewage,25/05/2016,162736,13.20,UNITED UTILITIES ,X00011,2,2016
Allerdale Borough Council,12408,Premises,Corporate Property Maintenance,Water & Sewage,25/05/2016,162737,21.55,UNITED UTILITIES ,X00011,2,2016
Allerdale Borough Council,12408,Premises,Corporate Property Maintenance,Water & Sewage,25/05/2016,162738,12.05,UNITED UTILITIES ,X00011,2,2016
Allerdale Borough Council,12408,Premises,Public Convenience Cleaning,Water & Sewage,25/05/2016,162739,202.40,UNITED UTILITIES ,X00011,2,2016
Allerdale Borough Council,12408,Premises,Public Convenience Cleaning,Water & Sewage,25/05/2016,162740,512.10,UNITED UTILITIES ,X00011,2,2016
Allerdale Borough Council,12408,Premises,Public Convenience Cleaning,Water & Sewage,25/05/2016,162741,272.68,UNITED UTILITIES ,X00011,2,2016
Allerdale Borough Council,12408,Premises,Public Convenience Cleaning,Water & Sewage,25/05/2016,162742,66.42,UNITED UTILITIES ,X00011,2,2016
Allerdale Borough Council,15805,Supplies & Services,IT Services,Computer Network,08/06/2016,162743,30.00,THUS/DEMON PLC/ (VODAFONE),A00598,2,2016
Allerdale Borough Council,35106,Income,Homelessness,Dwellings Income,25/05/2016,162744,848.32,ALLERDALE,A00342,2,2016
Allerdale Borough Council,54105,Capital Expenditure,Disabled Facilities Grants,Grants  Private Individuals (Capital),25/05/2016,162745,"4,115.03",HANDICARE ACCESSIBILITY LTD,X00211,2,2016
Allerdale Borough Council,16150,Supplies & Services,LEP Flood Recovery Events Funding,General Promotions,25/05/2016,162746,"5,000.00",FLIMBY CHILDRENS CARNIVAL,M00900,2,2016
Allerdale Borough Council,20111,Third Party Payments,Solway Wetlands Project,Voluntary Organisations,25/05/2016,162747,900.00,NORTH CUMBRIA METHODIST CIRCUIT,M00901,2,2016
Allerdale Borough Council,15101,Supplies & Services,New Leisure Facility,Equipment Costs,25/05/2016,162748,779.13,MISCO,A00125,2,2016
Allerdale Borough Council,15805,Supplies & Services,IT Services,Computer Network,08/06/2016,162749,"2,160.90",INSIGHT DIRECT (UK) LTD,A00054,2,2016
Allerdale Borough Council,16350,Supplies & Services,Homelessness,Miscellaneous Expenses,25/05/2016,162750,500.00,SMEATONS,M00902,2,2016
Allerdale Borough Council,12309,Premises,Corporate Property Maintenance,Fire and Safety,25/05/2016,162751,35.10,ORIAN SOLUTIONS LTD,A01814,2,2016
Allerdale Borough Council,12309,Premises,Corporate Property Maintenance,Fire and Safety,25/05/2016,162752,31.00,ORIAN SOLUTIONS LTD,A01814,2,2016
Allerdale Borough Council,12309,Premises,Corporate Property Maintenance,Fire and Safety,25/05/2016,162753,167.50,ORIAN SOLUTIONS LTD,A01814,2,2016
Allerdale Borough Council,12309,Premises,Corporate Property Maintenance,Fire and Safety,25/05/2016,162754,133.50,ORIAN SOLUTIONS LTD,A01814,2,2016
Allerdale Borough Council,12309,Premises,Corporate Property Maintenance,Fire and Safety,25/05/2016,162755,31.00,ORIAN SOLUTIONS LTD,A01814,2,2016
Allerdale Borough Council,12309,Premises,Corporate Property Maintenance,Fire and Safety,25/05/2016,162756,167.05,ORIAN SOLUTIONS LTD,A01814,2,2016
Allerdale Borough Council,12309,Premises,Corporate Property Maintenance,Fire and Safety,25/05/2016,162757,55.75,ORIAN SOLUTIONS LTD,A01814,2,2016
Allerdale Borough Council,10605,Employee Costs,Training,Travel,25/05/2016,162758,60.30,ENTERPRISE RENT A CAR,A01367,2,2016
Allerdale Borough Council,26000,Earmarked Reserves,Shared Revs & Bens Projects,Budget-Expd funded from Reserve,01/06/2016,162759,962.00,MORGAN HUNT PUBLIC SECTOR,A00725,2,2016
Allerdale Borough Council,16302,Supplies & Services,Members Services,Room Hire,25/05/2016,162760,75.00,GREENWICH LEISURE LTD (PREV CARLISLE LEISURE),A00136,2,2016
Allerdale Borough Council,26000,Earmarked Reserves,Shared Revs & Bens Projects,Budget-Expd funded from Reserve,25/05/2016,162761,961.74,MORGAN HUNT PUBLIC SECTOR,A00725,2,2016
Allerdale Borough Council,10110,Employee Costs,Chief Executive,Salary Sacrifice,25/05/2016,162762,"1,347.94",TUSKERDIRECT LTD,A02186,2,2016
Allerdale Borough Council,15601,Supplies & Services,Benefits,Postage,25/05/2016,162763,"1,543.27",ROYAL MAIL LETTERS,X00021,2,2016
Allerdale Borough Council,15601,Supplies & Services,Benefits,Postage,25/05/2016,162764,"1,044.51",ROYAL MAIL LETTERS,X00021,2,2016
Allerdale Borough Council,12402,Premises,Corporate Property Maintenance,Electricity,25/05/2016,162765,31.50,BES COMMERCIAL ELECTRICITY LTD,X00243,2,2016
Allerdale Borough Council,12403,Premises,Corporate Property Maintenance,Gas,25/05/2016,162766,0.34,EON,X00016,2,2016
Allerdale Borough Council,12408,Premises,Corporate Property Maintenance,Water & Sewage,25/05/2016,162767,10.48,UNITED UTILITIES,X00011,2,2016
Allerdale Borough Council,15401,Supplies & Services,Document Management Pay Group,General Stationery,25/05/2016,162768,48.52,LYRECO,A00043,2,2016
Allerdale Borough Council,15401,Supplies & Services,Document Management Pay Group,General Stationery,25/05/2016,162769,100.28,LYRECO,A00043,2,2016
Allerdale Borough Council,15401,Supplies & Services,Document Management Pay Group,General Stationery,25/05/2016,162770,628.50,TWOFOLD LTD,A00317,2,2016
Allerdale Borough Council,15603,Supplies & Services,Document Management Pay Group,Franking Machine Costs,25/05/2016,162771,300.00,THE MAILING ROOM (TMR EXECUTIVE AGENCY LTD),A00733,2,2016
Allerdale Borough Council,15808,Supplies & Services,Multi-functional Printers,Computer Consumables,25/05/2016,162772,211.00,ANTALIS LIMITED,A00122,2,2016
Allerdale Borough Council,15401,Supplies & Services,Document Management Pay Group,General Stationery,25/05/2016,162773,403.23,LYRECO,A00043,2,2016
Allerdale Borough Council,14101,Transport,Shared IT Services Pay Group,Vehicle Leasing,06/07/2016,162774,199.00,ARNOLD CLARK FINANCE LIMITED,A01781,2,2016
Allerdale Borough Council,15811,Supplies & Services,IT Services,Software Maintenance,31/05/2016,162775,264.99,SAGE (UK) LTD ,A01911,2,2016
Allerdale Borough Council,16302,Supplies & Services,Arts Development,Room Hire,25/05/2016,162776,55.00,WORKINGTON HERITAGE GROUP LTD,A00339,2,2016
Allerdale Borough Council,14103,Transport,Insurances,Insurance Council Vehicles,01/06/2016,162777,123.73,BLUEFIN INSURANCE SERVICES LTD,A01716,2,2016
Allerdale Borough Council,14103,Transport,Insurances,Insurance Council Vehicles,25/05/2016,162778,"1,368.75",BLUEFIN INSURANCE SERVICES LTD,A01716,2,2016
Allerdale Borough Council,14104,Transport,Public Convenience Cleaning,Repairs & Maintenance,25/05/2016,162779,252.60,FCC ENVIRONMENT SERVICES (FOCSA),A00085,2,2016
Allerdale Borough Council,12305,Premises,Corporate Property Maintenance,Inspections and Services,01/06/2016,162780,181.75,REFRIGERATION (MITTON) LTD,C00012,2,2016
Allerdale Borough Council,14103,Transport,Insurances,Insurance Council Vehicles,25/05/2016,162781,"84,540.53",BLUEFIN INSURANCE SERVICES LTD,A01716,2,2016
Allerdale Borough Council,15101,Supplies & Services,Public Building Cleaning,Equipment Costs,25/05/2016,162782,59.52,WF HYGIENE & CLEANING SUPPLIES,A01794,2,2016
Allerdale Borough Council,14103,Transport,Insurances,Insurance Council Vehicles,25/05/2016,162783,"1,936.02",BLUEFIN INSURANCE SERVICES LTD,A01716,2,2016
Allerdale Borough Council,14103,Transport,Insurances,Insurance Council Vehicles,25/05/2016,162784,"11,019.19",BLUEFIN INSURANCE SERVICES LTD,A01716,2,2016
Allerdale Borough Council,14103,Transport,Insurances,Insurance Council Vehicles,25/05/2016,162785,"7,216.84",BLUEFIN INSURANCE SERVICES LTD,A01716,2,2016
Allerdale Borough Council,14103,Transport,Insurances,Insurance Council Vehicles,25/05/2016,162786,"1,063.31",BLUEFIN INSURANCE SERVICES LTD,A01716,2,2016
Allerdale Borough Council,10401,Employee Costs,Shared IT Services Pay Group,Agency Staff Costs,25/05/2016,162787,366.98,ADECCO RECRUITMENT,A00188,2,2016
Allerdale Borough Council,15201,Supplies & Services,Leaders Services,Entertainment Of Visitors,20/07/2016,162788,35.23,BARCLAYCARD COMMERCIAL ,X00207,2,2016
Allerdale Borough Council,15201,Supplies & Services,Leaders Services,Entertainment Of Visitors,24/08/2016,162789,65.17,BARCLAYCARD COMMERCIAL ,X00207,2,2016
Allerdale Borough Council,16302,Supplies & Services,Police & Crime Commissioner Election,Room Hire,01/06/2016,162790,160.00,COCKERMOUTH TOWN COUNCIL,A00586,2,2016
Allerdale Borough Council,16302,Supplies & Services,Police & Crime Commissioner Election,Room Hire,01/06/2016,162791,149.50,GRASSMOOR SPORTS CENTRE,M00081,2,2016
Allerdale Borough Council,16302,Supplies & Services,Police & Crime Commissioner Election,Room Hire,01/06/2016,162792,160.00,HIGHFIELD COMMUNITY ASSOCIATION,M00533,2,2016
Allerdale Borough Council,16302,Supplies & Services,Police & Crime Commissioner Election,Room Hire,01/06/2016,162793,100.00,ALLHALLOWS COMMUNITY CENTRE,M00049,2,2016
Allerdale Borough Council,16302,Supplies & Services,Police & Crime Commissioner Election,Room Hire,01/06/2016,162794,120.00,BLENNERHASSET VILLAGE HALL,M00058,2,2016
Allerdale Borough Council,16302,Supplies & Services,Police & Crime Commissioner Election,Room Hire,01/06/2016,162795,200.00,SUPPER ROOM MASONIC HALL ASPATRIA,M00129,2,2016
Allerdale Borough Council,16302,Supplies & Services,Police & Crime Commissioner Election,Room Hire,01/06/2016,162796,135.00,ASPATRIA COMMUNITY CENTRE (FORMERLY ST KENTIGERNS CHURCH HALL)C,M00052,2,2016
Allerdale Borough Council,16302,Supplies & Services,Police & Crime Commissioner Election,Room Hire,01/06/2016,162797,70.00,ASPATRIA LIBRARY,M00053,2,2016
Allerdale Borough Council,16302,Supplies & Services,Police & Crime Commissioner Election,Room Hire,01/06/2016,162798,100.00,BASSENTHWAITE PARISH ROOM,M00552,2,2016
Allerdale Borough Council,16302,Supplies & Services,Police & Crime Commissioner Election,Room Hire,01/06/2016,162799,144.00,BOLTONS VILLAGE HALL,M00060,2,2016
Allerdale Borough Council,16302,Supplies & Services,Police & Crime Commissioner Election,Room Hire,01/06/2016,162800,70.00,BELL INSTITUTE BOLTONGATE,M00056,2,2016
Allerdale Borough Council,16302,Supplies & Services,Police & Crime Commissioner Election,Room Hire,01/06/2016,162801,94.00,GLOBE HALL IREBY,M00079,2,2016
Allerdale Borough Council,16302,Supplies & Services,Police & Crime Commissioner Election,Room Hire,01/06/2016,162802,200.00,THE SNOOTY FOX COUNTRY INN ULDALE,M00136,2,2016
Allerdale Borough Council,16302,Supplies & Services,Police & Crime Commissioner Election,Room Hire,01/06/2016,162803,50.00,UNDERSKIDDAW VILLAGE HALL,M00892,2,2016
Allerdale Borough Council,16302,Supplies & Services,Police & Crime Commissioner Election,Room Hire,01/06/2016,162804,175.00,THE BUSH INN TALLENTIRE,M00131,2,2016
Allerdale Borough Council,16302,Supplies & Services,Police & Crime Commissioner Election,Room Hire,01/06/2016,162805,150.00,MEMORIAL HALL BRIGHAM,M00099,2,2016
Allerdale Borough Council,16302,Supplies & Services,Police & Crime Commissioner Election,Room Hire,01/06/2016,162806,200.00,GREAT BROUGHTON BRITISH LEGION,M00082,2,2016
Allerdale Borough Council,16302,Supplies & Services,Police & Crime Commissioner Election,Room Hire,01/06/2016,162807,140.00,BROUGHTON VILLAGE HALL,A01428,2,2016
Allerdale Borough Council,16302,Supplies & Services,Police & Crime Commissioner Election,Room Hire,01/06/2016,162808,80.00,PAPCASTLE & BELLE VUE VILLAGE HALL,M00110,2,2016
Allerdale Borough Council,16302,Supplies & Services,Police & Crime Commissioner Election,Room Hire,01/06/2016,162809,150.00,VICTORIA HALL,M00141,2,2016
Allerdale Borough Council,16302,Supplies & Services,Police & Crime Commissioner Election,Room Hire,01/06/2016,162810,75.00,HARRIS PARK BOWLING CLUB,M00086,2,2016
Allerdale Borough Council,16302,Supplies & Services,Police & Crime Commissioner Election,Room Hire,01/06/2016,162811,124.00,GREAT CLIFTON VILLAGE HALL,M00083,2,2016
Allerdale Borough Council,16302,Supplies & Services,Police & Crime Commissioner Election,Room Hire,01/06/2016,162812,130.00,LITTLE CLIFTON VILLAGE HALL,M00096,2,2016
Allerdale Borough Council,16302,Supplies & Services,Police & Crime Commissioner Election,Room Hire,01/06/2016,162813,160.00,EAGLESFIELD VILLAGE HALL,M00554,2,2016
Allerdale Borough Council,16302,Supplies & Services,Police & Crime Commissioner Election,Room Hire,01/06/2016,162814,170.00,BLINDCRAKE VILLAGE HALL,M00059,2,2016
Allerdale Borough Council,16302,Supplies & Services,Police & Crime Commissioner Election,Room Hire,01/06/2016,162815,90.00,BUTTERMERE CHURCH HALL,M00065,2,2016
Allerdale Borough Council,16302,Supplies & Services,Police & Crime Commissioner Election,Room Hire,01/06/2016,162816,175.00,LOWESWATER VILLAGE HALL,M00097,2,2016
Allerdale Borough Council,16302,Supplies & Services,Police & Crime Commissioner Election,Room Hire,01/06/2016,162817,100.00,EMBLETON & DISTRICT PUBLIC HALL,M00075,2,2016
Allerdale Borough Council,16302,Supplies & Services,Police & Crime Commissioner Election,Room Hire,01/06/2016,162818,130.00,YEW TREE HALL LORTON,M00154,2,2016
Allerdale Borough Council,16302,Supplies & Services,Police & Crime Commissioner Election,Room Hire,01/06/2016,162819,120.00,KIRKSTILE COMMUNITY CENTRE,M00093,2,2016
Allerdale Borough Council,16302,Supplies & Services,Police & Crime Commissioner Election,Room Hire,01/06/2016,162820,80.00,GREYSOUTHEN VILLAGE HALL,M00085,2,2016
Allerdale Borough Council,16302,Supplies & Services,Police & Crime Commissioner Election,Room Hire,01/06/2016,162821,150.00,ST HERBERTS CHURCH HALL,M00741,2,2016
Allerdale Borough Council,16302,Supplies & Services,Police & Crime Commissioner Election,Room Hire,01/06/2016,162822,135.00,VILLAGE HALL PORTINSCALE,M00146,2,2016
Allerdale Borough Council,16302,Supplies & Services,Police & Crime Commissioner Election,Room Hire,01/06/2016,162823,130.00,NEWLANDS OLD SCHOOLROOM,M00104,2,2016
Allerdale Borough Council,16302,Supplies & Services,Police & Crime Commissioner Election,Room Hire,01/06/2016,162824,100.00,BORROWDALE INSTITUTE ROSTHWAITE,M00061,2,2016
Allerdale Borough Council,16302,Supplies & Services,Police & Crime Commissioner Election,Room Hire,01/06/2016,162825,200.00,GRANGE METHODIST CHURCH,M00893,2,2016
Allerdale Borough Council,16302,Supplies & Services,Police & Crime Commissioner Election,Room Hire,01/06/2016,162826,150.00,CROSSCANONBY PARISH COMMUNITY CENTRE,M00069,2,2016
Allerdale Borough Council,16302,Supplies & Services,Police & Crime Commissioner Election,Room Hire,01/06/2016,162827,65.00,DUNCAN HILL LTD,M00134,2,2016
Allerdale Borough Council,16302,Supplies & Services,Police & Crime Commissioner Election,Room Hire,01/06/2016,162828,105.00,DEARHAM PARISH HALL,M00072,2,2016
Allerdale Borough Council,16302,Supplies & Services,Police & Crime Commissioner Election,Room Hire,15/06/2016,162829,150.00,BASSENTHWAITE CHURCH ROOM,M00055,2,2016
Allerdale Borough Council,16302,Supplies & Services,Police & Crime Commissioner Election,Room Hire,01/06/2016,162830,113.00,ALL SOULS CHURCH HALL,M00048,2,2016
Allerdale Borough Council,16302,Supplies & Services,Police & Crime Commissioner Election,Room Hire,01/06/2016,162831,200.00,BROUGHTON MOOR PRIMARY,A01255,2,2016
Allerdale Borough Council,16302,Supplies & Services,Police & Crime Commissioner Election,Room Hire,01/06/2016,162832,80.00,GRASSLOT WELFARE SOCIAL CLUB,M00080,2,2016
Allerdale Borough Council,16302,Supplies & Services,Police & Crime Commissioner Election,Room Hire,01/06/2016,162833,150.00,EWANRIGG & NETHERTON COMM CENTRE,M00076,2,2016
Allerdale Borough Council,16302,Supplies & Services,Police & Crime Commissioner Election,Room Hire,01/06/2016,162834,160.00,FLIMBY METHODIST CHAPEL,M00077,2,2016
Allerdale Borough Council,16302,Supplies & Services,Police & Crime Commissioner Election,Room Hire,01/06/2016,162835,65.00,LAKES COLLEGE WEST CUMB,A00093,2,2016
Allerdale Borough Council,16302,Supplies & Services,Police & Crime Commissioner Election,Room Hire,01/06/2016,162836,150.00,ST MARYS RC CHURCH HALL CHURCH RD,M00465,2,2016
Allerdale Borough Council,16302,Supplies & Services,Police & Crime Commissioner Election,Room Hire,01/06/2016,162837,200.00,HIGH HARRINGTON COMMUNITY CENTRE,M00088,2,2016
Allerdale Borough Council,16302,Supplies & Services,Police & Crime Commissioner Election,Room Hire,01/06/2016,162838,120.00,VILLAGE HALL ALLONBY,M00144,2,2016
Allerdale Borough Council,16302,Supplies & Services,Police & Crime Commissioner Election,Room Hire,01/06/2016,162839,195.00,ABBEYTOWN ASSEMBLY ROOM,M00045,2,2016
Allerdale Borough Council,16302,Supplies & Services,Police & Crime Commissioner Election,Room Hire,01/06/2016,162840,150.00,ST. MARYS CHURCH OF ENGLAND HALL,M00123,2,2016
Allerdale Borough Council,16302,Supplies & Services,Police & Crime Commissioner Election,Room Hire,01/06/2016,162841,70.00,HOLME ST CUTHBERT CHURCH HALL,M00090,2,2016
Allerdale Borough Council,16302,Supplies & Services,Police & Crime Commissioner Election,Room Hire,01/06/2016,162842,105.00,CULTERHAM HALL MAWBRAY,M00071,2,2016
Allerdale Borough Council,16302,Supplies & Services,Police & Crime Commissioner Election,Room Hire,01/06/2016,162843,250.00,MILLFIELD RETIREMENT HOME,M00101,2,2016
Allerdale Borough Council,16302,Supplies & Services,Police & Crime Commissioner Election,Room Hire,01/06/2016,162844,140.00,METHODIST CHURCH KESWICK,M00100,2,2016
Allerdale Borough Council,16302,Supplies & Services,Police & Crime Commissioner Election,Room Hire,01/06/2016,162845,120.00,CROSTHWAITE PARISH ROOMS,M00070,2,2016
Allerdale Borough Council,16302,Supplies & Services,Police & Crime Commissioner Election,Room Hire,01/06/2016,162846,75.00,THIRLMERE RECREATION HALL,M00137,2,2016
Allerdale Borough Council,16302,Supplies & Services,Police & Crime Commissioner Election,Room Hire,01/06/2016,162847,100.00,LINDOW HALL BOWNESS,M00095,2,2016
Allerdale Borough Council,16302,Supplies & Services,Police & Crime Commissioner Election,Room Hire,01/06/2016,162848,180.00,HIGHLAND LADDIE GLASSON,M00089,2,2016
Allerdale Borough Council,16302,Supplies & Services,Police & Crime Commissioner Election,Room Hire,01/06/2016,162849,180.00,ANTHORN VILLAGE HALL,M00050,2,2016
Allerdale Borough Council,16302,Supplies & Services,Police & Crime Commissioner Election,Room Hire,01/06/2016,162850,65.00,KIRKBRIDE PRIMARY SCHOOL,A01225,2,2016
Allerdale Borough Council,16302,Supplies & Services,Police & Crime Commissioner Election,Room Hire,01/06/2016,162851,150.00,KIRKBAMPTON VILLAGE HALL,M00091,2,2016
Allerdale Borough Council,16302,Supplies & Services,Police & Crime Commissioner Election,Room Hire,01/06/2016,162852,60.00,ST. GREGORYS RC SCHOOL (NURSERY CLASS),M00119,2,2016
Allerdale Borough Council,16302,Supplies & Services,Police & Crime Commissioner Election,Room Hire,01/06/2016,162853,75.00,LAYBOURN HOUSE,M00094,2,2016
Allerdale Borough Council,16302,Supplies & Services,Police & Crime Commissioner Election,Room Hire,01/06/2016,162854,240.00,MOORCLOSE COMMUNITY CENTRE LTD,A00709,2,2016
Allerdale Borough Council,16302,Supplies & Services,Police & Crime Commissioner Election,Room Hire,01/06/2016,162855,150.00,THE CONFERENCE ROOM THE MINTO CENTRE,M00132,2,2016
Allerdale Borough Council,16302,Supplies & Services,Police & Crime Commissioner Election,Room Hire,01/06/2016,162856,75.00,IMPACT HOUSING ASSOCIATION LTD,A00236,2,2016
Allerdale Borough Council,16302,Supplies & Services,Police & Crime Commissioner Election,Room Hire,01/06/2016,162857,180.00,ST MARYS CHURCH HALL WESTFIELD,M00466,2,2016
Allerdale Borough Council,16302,Supplies & Services,Police & Crime Commissioner Election,Room Hire,01/06/2016,162858,75.00,ALLERDALE CREDIT UNION OFFICE WORKINGTON,M00046,2,2016
Allerdale Borough Council,16302,Supplies & Services,Police & Crime Commissioner Election,Room Hire,01/06/2016,162859,200.00,FLEMING PLACE SOCIAL CLUB,M00556,2,2016
Allerdale Borough Council,16302,Supplies & Services,Police & Crime Commissioner Election,Room Hire,01/06/2016,162860,112.00,ALLERDALE,A00342,2,2016
Allerdale Borough Council,16302,Supplies & Services,Police & Crime Commissioner Election,Room Hire,01/06/2016,162861,100.00,CAMERTON VILLAGE HALL,M00066,2,2016
Allerdale Borough Council,16302,Supplies & Services,Police & Crime Commissioner Election,Room Hire,01/06/2016,162862,150.00,ST. PAULS CHURCH HALL,M00127,2,2016
Allerdale Borough Council,16302,Supplies & Services,Police & Crime Commissioner Election,Room Hire,01/06/2016,162863,100.00,TANGLEWOOD CARAVAN PARK,M00130,2,2016
Allerdale Borough Council,16302,Supplies & Services,Police & Crime Commissioner Election,Room Hire,01/06/2016,162864,125.00,CHRIST CHURCH HALL SOLWAY STREET,M00068,2,2016
Allerdale Borough Council,16302,Supplies & Services,Police & Crime Commissioner Election,Room Hire,01/06/2016,162865,60.00,GREENROW PENTECOSTAL CHURCH,M00084,2,2016
Allerdale Borough Council,16302,Supplies & Services,Police & Crime Commissioner Election,Room Hire,01/06/2016,162866,250.00,SOLWAY COMMUNITY TECHNOLOGY COLLEGE (SPORTS HALL),M00118,2,2016
Allerdale Borough Council,16302,Supplies & Services,Police & Crime Commissioner Election,Room Hire,01/06/2016,162867,125.00,ST. MUNGOS CHURCH,M00126,2,2016
Allerdale Borough Council,16302,Supplies & Services,Police & Crime Commissioner Election,Room Hire,01/06/2016,162868,105.00,BLENCOGO VILLAGE HALL,M00057,2,2016
Allerdale Borough Council,16302,Supplies & Services,Police & Crime Commissioner Election,Room Hire,01/06/2016,162869,135.00,ST. JAMES CHURCH HAYTON,M00120,2,2016
Allerdale Borough Council,16302,Supplies & Services,Police & Crime Commissioner Election,Room Hire,01/06/2016,162870,120.00,PROSPECT VILLAGE HALL,M00114,2,2016
Allerdale Borough Council,16302,Supplies & Services,Police & Crime Commissioner Election,Room Hire,01/06/2016,162871,50.00,WESTNEWTON VILLAGE HALL,M00150,2,2016
Allerdale Borough Council,16302,Supplies & Services,Police & Crime Commissioner Election,Room Hire,01/06/2016,162872,65.00,ASHFIELD INFANTS SCHOOL,M00051,2,2016
Allerdale Borough Council,16302,Supplies & Services,Police & Crime Commissioner Election,Room Hire,01/06/2016,162873,225.00,ST JOHNS COMMUNITY HALL,M00742,2,2016
Allerdale Borough Council,16302,Supplies & Services,Police & Crime Commissioner Election,Room Hire,01/06/2016,162874,150.00,BAPTIST SUNDAY SCHOOL,M00054,2,2016
Allerdale Borough Council,16302,Supplies & Services,Police & Crime Commissioner Election,Room Hire,01/06/2016,162875,65.00,VICTORIA INFANTS SCHOOL,M00142,2,2016
Allerdale Borough Council,16302,Supplies & Services,Police & Crime Commissioner Election,Room Hire,01/06/2016,162876,100.00,WADAMS,A01245,2,2016
Allerdale Borough Council,16302,Supplies & Services,Police & Crime Commissioner Election,Room Hire,01/06/2016,162877,60.00,VICTORIA JUNIOR SCHOOL,M00143,2,2016
Allerdale Borough Council,16302,Supplies & Services,Police & Crime Commissioner Election,Room Hire,01/06/2016,162878,160.00,QUEEN STREET HALL,M00115,2,2016
Allerdale Borough Council,16302,Supplies & Services,Police & Crime Commissioner Election,Room Hire,01/06/2016,162879,100.00,ST MICHAELS RESOURCE CENTRE,M00467,2,2016
Allerdale Borough Council,16302,Supplies & Services,Police & Crime Commissioner Election,Room Hire,01/06/2016,162880,150.00,NORTHSIDE COMMUNITY CENTRE,A01079,2,2016
Allerdale Borough Council,16302,Supplies & Services,Police & Crime Commissioner Election,Room Hire,01/06/2016,162881,200.00,UNITED UTILITY TREATMENT WORKS,M00107,2,2016
Allerdale Borough Council,16302,Supplies & Services,Police & Crime Commissioner Election,Room Hire,01/06/2016,162882,150.00,WORKINGTON HERITAGE GROUP LTD,A00339,2,2016
Allerdale Borough Council,16302,Supplies & Services,Police & Crime Commissioner Election,Room Hire,01/06/2016,162883,65.00,PARISH ROOM AIKTON,M00112,2,2016
Allerdale Borough Council,16302,Supplies & Services,Police & Crime Commissioner Election,Room Hire,01/06/2016,162884,140.00,PARISH ROOM CALDBECK,M00111,2,2016
Allerdale Borough Council,16302,Supplies & Services,Police & Crime Commissioner Election,Room Hire,01/06/2016,162885,40.00,CHAPEL SUNDAY SCHOOL HESKET NEWMARKET,M00067,2,2016
Allerdale Borough Council,16302,Supplies & Services,Police & Crime Commissioner Election,Room Hire,01/06/2016,162886,80.00,WELTON VILLAGE HALL,M00149,2,2016
Allerdale Borough Council,16302,Supplies & Services,Police & Crime Commissioner Election,Room Hire,01/06/2016,162887,70.00,NEW HALL SEBERGHAM,M00103,2,2016
Allerdale Borough Council,16302,Supplies & Services,Police & Crime Commissioner Election,Room Hire,01/06/2016,162888,80.00,ROSLEY VILLAGE HALL,M00116,2,2016
Allerdale Borough Council,16302,Supplies & Services,Police & Crime Commissioner Election,Room Hire,01/06/2016,162889,150.00,WESTWARD PARISH ROOM,M00151,2,2016
Allerdale Borough Council,16302,Supplies & Services,Police & Crime Commissioner Election,Room Hire,01/06/2016,162890,216.00,WHEYRIGG HALL HOTEL,M00152,2,2016
Allerdale Borough Council,16302,Supplies & Services,Police & Crime Commissioner Election,Room Hire,01/06/2016,162891,225.00,NEWTON ARLOSH PARISH HALL,M00105,2,2016
Allerdale Borough Council,16302,Supplies & Services,Police & Crime Commissioner Election,Room Hire,01/06/2016,162892,40.00,WAVERTON VILLAGE HALL,M00148,2,2016
Allerdale Borough Council,16302,Supplies & Services,Police & Crime Commissioner Election,Room Hire,01/06/2016,162893,183.00,LOW MOOR EVANGELICAL CHURCH,M00098,2,2016
Allerdale Borough Council,16302,Supplies & Services,Police & Crime Commissioner Election,Room Hire,01/06/2016,162894,100.00,OULTON PARISH INSTITUTE,M00108,2,2016
Allerdale Borough Council,16302,Supplies & Services,Police & Crime Commissioner Election,Room Hire,01/06/2016,162895,250.00,TORPENHOW VILLAGE HALL,M00140,2,2016
Allerdale Borough Council,16302,Supplies & Services,Police & Crime Commissioner Election,Room Hire,01/06/2016,162896,120.00,BOTHEL VILLAGE HALL,M00062,2,2016
Allerdale Borough Council,16302,Supplies & Services,Police & Crime Commissioner Election,Room Hire,01/06/2016,162897,112.50,PLUMBLAND VILLAGE HALL,M00113,2,2016
Allerdale Borough Council,16302,Supplies & Services,Police & Crime Commissioner Election,Room Hire,01/06/2016,162898,120.00,GILCRUX VILLAGE HALL,M00078,2,2016
Allerdale Borough Council,16302,Supplies & Services,Police & Crime Commissioner Election,Room Hire,01/06/2016,162899,300.00,WIGTON MARKET HALL,M00153,2,2016
Allerdale Borough Council,16302,Supplies & Services,Police & Crime Commissioner Election,Room Hire,01/06/2016,162900,85.00,TENANTS LOUNGE 8 BURNSIDE,M00559,2,2016
Allerdale Borough Council,52106,Capital Expenditure,New Leisure Facility,Consultants Fees (Capital),01/06/2016,162901,"11,242.46",PICK EVERARD,A02007,2,2016
Allerdale Borough Council,15505,Supplies & Services,Planning and Development,Licences,01/06/2016,162902,23.70,CENTREMAPS,A00512,2,2016
Allerdale Borough Council,15501,Supplies & Services,Building Control - Chargeable,Consultants Fees,01/06/2016,162903,46.00,PK ELECTRICAL (CARLISLE) LTD,A00778,2,2016
Allerdale Borough Council,15101,Supplies & Services,Solway Wetlands Project,Equipment Costs,01/06/2016,162904,41.47,ASHTEAD PLANT HIRE CO LTD,C00019,2,2016
Allerdale Borough Council,20150,Third Party Payments,Building Control - Non-Chargeable,General Partnership Service Fees,01/06/2016,162905,260.00,THOMAS ARMSTRONG - CONSTRUCT,C00003,2,2016
Allerdale Borough Council,15501,Supplies & Services,Estates,Consultants Fees,01/06/2016,162906,"1,600.00",JAMES ANDREW RECRUITMENT SOLUTIONS LTD,A02339,2,2016
Allerdale Borough Council,12201,Premises,Homelessness,Internal Maintenance,01/06/2016,162907,338.00,AA CARPETS LTD,C00031,2,2016
Allerdale Borough Council,37101,Income,Customer Services Pay Group,Salary Recharges Income,01/06/2016,162908,517.26,ADECCO RECRUITMENT,A00188,2,2016
Allerdale Borough Council,15102,Supplies & Services,Off-street - Owned,Equipment Repair & Maintenance,08/06/2016,162909,15.63,METRIC GROUP LTD,A00568,2,2016
Allerdale Borough Council,15808,Supplies & Services,IT Services,Computer Consumables,22/06/2016,162910,33.54,UPGRADE OPTIONS LTD,A02316,2,2016
Allerdale Borough Council,15506,Supplies & Services,Communications and Marketing,Professional Services,08/06/2016,162911,"2,062.50",ELSWORTH COMMUNICATIONS,A01869,2,2016
Allerdale Borough Council,15405,Supplies & Services,Police & Crime Commissioner Election,Use of External Printers,08/06/2016,162912,825.00,FIRPRESS PRINTERS,A00063,2,2016
Allerdale Borough Council,15811,Supplies & Services,IT Services,Software Maintenance,22/06/2016,162913,"4,357.50",MAYRISE LTD (YOTTA),A00382,2,2016
Allerdale Borough Council,16101,Supplies & Services,Planning and Development,Statutory Notices,01/06/2016,162914,328.03,CUMBRIAN NEWSPAPERS LIMITED,A00869,2,2016
Allerdale Borough Council,15501,Supplies & Services,Estates,Consultants Fees,01/06/2016,162915,"1,600.00",JAMES ANDREW RECRUITMENT SOLUTIONS LTD,A02339,2,2016
Allerdale Borough Council,15203,Supplies & Services,Police & Crime Commissioner Election,Catering Costs and Consumables,01/06/2016,162916,906.30,AL'S KITCHEN LTD,A00187,2,2016
Allerdale Borough Council,10501,Employee Costs,Corporate Recruitment,Advertising Vacancies,22/06/2016,162917,750.00,CHART INST OF ENVIRO HEALTH,A00035,2,2016
Allerdale Borough Council,26000,Earmarked Reserves,Shared Revs & Bens Projects,Budget-Expd funded from Reserve,01/06/2016,162918,962.00,MORGAN HUNT PUBLIC SECTOR,A00725,2,2016
Allerdale Borough Council,14101,Transport,Domestic Waste,Vehicle Leasing,01/06/2016,162919,250.00,DOBIES VAUXHALL,A00254,2,2016
Allerdale Borough Council,15103,Supplies & Services,Solway Wetlands Project,Purchase of Materials,15/06/2016,162920,49.54,TRAVIS PERKINS TRADING,A01117,2,2016
Allerdale Borough Council,12101,Premises,Parks and Grounds Maintenance,External Maintenance & Decoration,01/06/2016,162921,"5,525.00",JOHN SANDELANDS LIMITED,C00168,2,2016
Allerdale Borough Council,12103,Premises,Parks and Grounds Maintenance,Grounds Maintenance,29/06/2016,162922,"2,368.00",ISS WATERERS LANDSCAPE,C00044,2,2016
Allerdale Borough Council,12103,Premises,Parks and Grounds Maintenance,Grounds Maintenance,29/06/2016,162923,"1,420.00",ISS WATERERS LANDSCAPE,C00044,2,2016
Allerdale Borough Council,15300,Supplies & Services,Animal Welfare,Budget-Prov of Clothing and Equipment,01/06/2016,162924,251.45,KELTIC,A00017,2,2016
Allerdale Borough Council,14101,Transport,Animal Welfare,Vehicle Leasing,01/06/2016,162925,823.32,HALFORDS LTD,A02319,2,2016
Allerdale Borough Council,15803,Supplies & Services,IT Services,Hardware Purchase,15/06/2016,162926,201.38,MISCO,A00125,2,2016
Allerdale Borough Council,15101,Supplies & Services,Homelessness,Equipment Costs,08/06/2016,162927,87.25,ARCO LIMITED,A00045,2,2016
Allerdale Borough Council,15101,Supplies & Services,Homelessness,Equipment Costs,08/06/2016,162928,49.02,ARCO LIMITED,A00045,2,2016
Allerdale Borough Council,15103,Supplies & Services,Solway Wetlands Project,Purchase of Materials,15/06/2016,162929,-49.54,TRAVIS PERKINS TRADING,A01117,2,2016
Allerdale Borough Council,15101,Supplies & Services,New Ways of Working,Equipment Costs,29/06/2016,162930,256.29,MILLGATE COMPUTER SYSTEMS,A02314,2,2016
Allerdale Borough Council,75103,Holding and Control Accounts,Payroll Suspense Account,PAYROLL May 16 Travel & Subsistence  ,,,"15,786.72",INLAND REVENUE,X00038,2,2016
